{"text_format":"1","workbook":"xlsx","n_sheets":24,"sheets":["Cover Page","Contents","Facility Info","Operational Data","Operational Summary","Perf. Form 1","Energy Form 1","Permit Compliance","Improvements","Public Liasion","CO2 N2O","Residue Quality ","Water","Air (periodic)","Air (CEMS)","HCl","SO2","NOx","TOC","Particulates","CO 0.5 hourly","CO 95% 10 min","NH3","Template changes log"],"not_rendered":{"charts":8,"images":4,"macros":1,"external_links":1,"defined_names":24,"comments":1,"pivot_tables":0},"unopened":[],"bounds":{"document_bytes":16777216,"sheet_cells":100000,"rows_first":2000,"rows_last":500,"rows_between":2000,"halvings":0,"cell_chars":16384,"cell_head_chars":4096},"cells_cut":0,"cells_raw":0,"read":"whole","date_system":"1900"}

{"sheet":"Cover Page","index":0,"n_rows":53,"n_cols":14,"rows_kept":53,"cut":false,"hidden":false,"merged":[[13,13,18,15],[34,1,34,8],[0,3,5,6],[7,1,23,8],[28,1,28,8],[30,1,30,8],[32,1,32,8],[48,2,48,3],[48,6,48,8],[52,2,52,3],[36,1,36,8],[40,2,40,8],[42,2,42,4],[44,2,44,4],[46,2,46,3],[46,6,46,8]]}
[null,null,null,"Add company logo"]
[null,null,null,null,null,null,null,null,null,null,null,null,null,"Version 24.2a (for incinerators) - 27/11/24"]
[]
[null,null,null,null,null,null,null,null,null,null,null,null,null,"Note that there is another version of this template available for co-incinerators"]
[]
[]
[]
[null,"Add photo"]
[]
[]
[]
[]
[null,null,null,null,null,null,null,null,null,null,null,null,null,"Notes:"]
[null,null,null,null,null,null,null,null,null,null,null,null,null,"This template may require adjustments by individual operators to meet specific reporting requirements as defined in the site Permit(s)"]
[]
[]
[]
[]
[]
[]
[]
[]
[]
[]
[]
[]
[]
[]
[null,"Annual Performance Report 2024"]
[]
[null,"Permit EPR/BR4551IC"]
[]
[null,"Kent Enviropower Limited"]
[]
[null,"Allington Incinerator, Allington Quarry"]
[]
[null,"Kent Enviropower Limited"]
[]
[null,"Year:",2024]
[]
[null,"Address:","Laverstoke Road, Allington, Maidstone, Kent. ME16 0LE"]
[]
[null,"Tel: ","0844 736 9990"]
[]
[null,"Email: "]
[]
[null,"Prepared by:","Trevor Ellis",null,null,"Position:","Environment Manager"]
[]
[null,"Approved by:","Tony Stanbridge",null,null,"Position:","General Manager"]
[]
[null,"Version:",2]
[]
[null,"Issue Date:","31st January 2025"]

{"sheet":"Contents","index":1,"n_rows":45,"n_cols":11,"rows_kept":45,"cut":false,"hidden":false,"merged":[[4,10,7,14],[8,1,8,6],[3,1,3,6],[4,1,4,6],[5,1,5,6],[6,1,6,6],[7,1,7,6],[21,1,21,6],[9,1,9,6],[10,1,10,6],[11,1,11,6],[13,1,13,6],[14,1,14,6],[15,1,15,6],[16,1,16,6],[17,1,17,6],[18,1,18,6],[19,1,19,6],[20,1,20,6],[12,1,12,6],[36,1,36,6],[22,1,22,6],[23,1,23,6],[24,1,24,6],[27,1,27,6],[28,1,28,6],[29,1,29,6],[30,1,30,6],[31,1,31,6],[32,1,32,6],[35,1,35,6],[44,0,47,9],[37,1,37,6],[38,1,38,6],[39,1,39,6],[40,1,40,6],[41,1,41,6],[42,1,42,6]]}
[{"$f":"+'Cover Page'!$B$29","v":"Annual Performance Report 2024"},null,null,null,{"$f":"+'Cover Page'!$B$33","v":"Kent Enviropower Limited"}]
[]
["Contents",null,null,null,null,null,null,null,null,null,"Notes:"]
["Section","Subject",null,null,null,null,null,"Page ",null,null,"Section references and Page nos. to be inserted"]
[null,"Facility Information",null,null,null,null,null,null,null,null,"Sections and Subjects may require adjustment by individual operators to meet specific reporting requirements as defined in the sites Permit(s)"]
[null,"Operational Data"]
[null,"Operational Summary"]
[null,"Performance Form 1"]
[null,"Energy Form 1"]
[null,"Permit Compliance"]
[null,"Improvements"]
[null,"Public Liaison"]
[null,"Carbon dioxide and nitrous oxide emissions"]
[null,"Residue Quality "]
[null,"Emissions to Water"]
[null,"Emissions to Air (periodically monitored)"]
[null,"Emissions to Air (continuously monitored)"]
[null,"Hydrogen Chloride emissions"]
[null,"Sulphur Dioxide emissions"]
[null,"Oxides of Nitrogen emissions"]
[null,"Total Organic Carbon emissions"]
[null,"Particulate Matter emissions"]
[null,"Carbon Monoxide emissions"]
[null,"Ammonia emissions"]
[]
[]
["Version Control"]
["Section","Information",null,null,null,null,null,"Date"]
[]
[]
[]
[]
[]
[]
["Distribution"]
["Copy","Name, Role",null,null,null,null,null,"No."]
[]
[]
[]
[]
[]
[]
[]
[]
["This report is required under the Industrial Emissions Directive’s Article 55(2) requirements on reporting and public information on waste incineration plants and co-incineration plants, which require the operator to produce an annual report on the functioning and monitoring of the plant and make it available to the public. "]

{"sheet":"Facility Info","index":2,"n_rows":82,"n_cols":11,"rows_kept":82,"cut":false,"hidden":false,"merged":[[81,0,84,8],[4,0,17,8],[4,10,13,13],[21,0,53,8],[21,10,30,13],[54,0,80,8]]}
[{"$f":"+'[1]Cover Page'!$B$29","v":"Annual Performance Report 2023"},null,null,null,{"$f":"+'[1]Cover Page'!$B$33","v":"Kent Enviropower Limited"}]
[]
["Plant Description and Design",null,null,null,null,null,null,null,null,null,"Notes:"]
[]
["Installation Description\n\nThe Installation receives non hazardous municipal and industrial waste, recovers recyclable elements for reuse and eliminates the combustible element of the residue by burning in a fluidised bed furnace.  Energy is recovered from the process and converted to electricity in place of non-renewable fossil fuels. The combustion gases are cleaned to meet the standards required by the Directive before discharge from a tall chimney. Ashes and other solid residues are removed from the installation.\n\nThe Installation covers the site and the entire EfW plant including all EfW lines, waste reception, storage, on-site pre-treatment facilities, water, fuel and air supply systems, boiler, facilities for the treatment of exhaust gases, on-site facilities for treatment or storage of residues and waste water, stack, devices and systems for controlling combustion operations, recording and monitoring conditions.\n\nThe Installation has a design throughput of approx 580,000 tonnes per annum with an EfW capacity approx 560,000 tonnes per annum. The transfer loading station receives food waste and clean source separated recyclables which it reloads for onward transport and recovery.  There is a single waste reception followed by three independent waste treatment lines each complete with a heat recovery boiler, acid gas abatement, bag filter and a separate flue in the chimney. The heat produced from the combustion of the waste is used to generate steam in the boilers and the steam is then combined and passed to a steam turbine which generates approx 34.5 MW of electrical energy for export to the National Grid.",null,null,null,null,null,null,null,null,null,"Include summary of plant design, design capacity, no. of combustion lines, electrical and heat capacity and any other general information that describes the facility, its location and purpose "]
[]
[]
[]
[]
[]
[]
[]
[]
[]
[]
[]
[]
[]
[]
["Summary of Operational Processes and Procedures"]
[]
["Raw Materials\nWaste is delivered to the plant in road vehicles which are weighed before proceeding to the tipping\nhall. This is a fully enclosed building, maintained under slight negative pressure to ensure that no\nodours, dust or litter can escape the building. The vehicles carry either unsorted mixed municipal\nwaste, sorted waste for recycling or mixed recyclable waste and non recyclable waste and each tip\ninto the appropriate section of the tipping hall.\nThe unsorted mixed waste (black bag) is transferred by crane grab to a waste shredding line, it then\nmoves forward through a metals extraction section where ferrous metals are removed for recycling\nbefore moving to the prepared fuel bunker.\nThe facility also operates as a waste transfer site. It receives clean mixed recyclates and food wastes\ncollected in the community and loads them in bulk onto their designated transport vehicles for transport\noff site for recovery.\nA crane grab in the prepared fuel bunker both mixes the waste and charges the hoppers of the three\nincineration lines.\nHydrated lime for the flue gas cleaning process is delivered by bulk tanker and offloaded pneumatically\ninto three 125m3 silos vented through a reverse pulse jet filter.\nActivated carbon for the flue gas cleaning process is stored in dedicated silos that are pneumatically\nfilled from delivery trucks. There are three silos, one for each line, each equipped with filters to prevent\ndust emissions during filling.\nUrea, dissolved in water is stored in a fully bunded tank and is injected into the furnaces as necessary\nto control NOx emissions.\nCaustic soda for water treatment resin regeneration is delivered by bulk tanker and offloaded into a\n5.5 m3 tank with scrubber, inside the demineralisation area.\nHydrochloric acid for water treatment resin regeneration is delivered by bulk tanker and offloaded into\na 5.5 m3 tank vented through the caustic soda scrubber in a bund outside the demineralisation area.\nVarious other water treatment chemicals are delivered in appropriate containers and stored in bunded\nareas.\nGas oil for the combustion chamber burners and on-site vehicles is stored in a fully bunded 150 m3\ntank.\nSand for the fluidised bed furnaces is stored in 3 silos each of 55 cubic meters capacity.\nVarious maintenance materials (oils, greases, insulants, antifreezes, welding and fire fighting gases\netc.) are stored in the appropriate manner.\n                                                                                                                                                                                                                                                                                                                                                                                                                                                                                                                                                                                                                                                                                                                                                                                                                                                                                                                                                                                                                                                                                                                                        \n                                                                                                                                                                                                                                                                                                                                                                                                                                                                                         Combustion Process:-  The technology employed for incineration is the ROWITEC unit which uses a fluidised bed process.\nThe design has an inclined air distributor plate with a number of separate air supply chambers providing\ndifferential air flows across the bed, causing a revolving action. This technique promotes rapid and\nuniform mixing of the sand and bottom ash and ensures that heavy inert and non-combustible material\nmigrates to the sides of the bed where they can easily be removed.\nAn angled furnace wall above the fluidised bed zone restrains bed expansion under high fluidising air\nflows and so minimises particulate carry over. The elliptical patterns of air flow converge in the centre\nof the combustion area ensuring effective vertical and lateral turbulent mixing and high combustion\nefficiency and uniformity.\nThe waste is burned on a bed consisting of sand and ash that is held in suspension by an upward flow\nof combustion air that circulates the combustion mixture up to the throat of the furnace.\nThe furnace operating design is based on a thermal capacity of 53.8MW at full load and this can be\nachieved over the typical range of waste calorific values expected with municipal waste.\nThe combustion air system provides the furnace with the total air requirements for fluidisation and\ncombustion. Primary air is supplied to the bottom of the combustion chamber and fluidises the bed.\nThis air is extracted from the waste reception and storage buildings and destroys all odours in the\ncombustion chamber.\nEach furnace is equipped with two fuel oil burners for use at start-up to heat the furnace and also\nduring extreme reductions in waste fuel calorific value when the temperature of the furnace would\notherwise fall below 850 degrees Centigrade.\nCombustion control of the furnace will be achieved through a combination of furnace bed and freeboard\ntemperature control, primary air flow control, oxygen control within the flue gas and furnace load.\nRecirculated flue gas is fed to the furnace bed as a cooling medium to control the furnace bed\ntemperature and also to assist the control of NOx by influencing the combustion temperature conditions\nwithin the furnace.\nThe furnace bed is managed to remove non-combustible material (bottom ash) from the bed and\nmaintain the sand level within the optimum operating range. Bottom ashes produced in the furnace\ntogether with sand migrate down the slope of the furnace to the discharge section located at each side\nof the bed. The bottom ash and sand are both withdrawn from the discharge sections of the bed by\ntwo water-cooled discharge screw conveyors. Material passing out of the screw conveyors is\ndischarged to a vibrating screen. Undersize material is returned to the sand hopper for re-use within\nthe furnace while the oversized material is sent off site for recovery or re-use or landfill.",null,null,null,null,null,null,null,null,null,"Include summary of key processes and procedures such as (but not limited to); waste reception, control rooms, grate, bed and boiler, energy & heat  generation, cooling systems, residue management, emission controls, health and safety systems, maintenance"]
[]
[]
[]
[]
[]
[]
[]
[]
[]
[]
[]
[]
[]
[]
[]
[]
[]
[]
[]
[]
[]
[]
[]
[]
[]
[]
[]
[]
[]
[]
[]
[]
["\nEnergy Recovery\nHot gases from the furnace pass through to a boiler designed to generate steam. The boiler comprises\ntwo fully water cooled radiation chambers, a single pass horizontal plain tube convective heating\nsurface, incorporating a three stage convective superheater unit and a plain tube economiser section.\nThe economiser is designed for high velocity gas flow to minimise the reformation of dioxins in the\ncritical de Novo synthesis range.\nSteam is generated at 65 bar and a final temperature of 420 degrees Centigrade.\nThe high pressure steam from all three boilers feeds into a common header which in turn will feed a\ncondensing steam turbine that will generate electricity. Steam exiting the turbine will be condensed in\nan air cooled condenser and the condensate returned to the boilers.\nGas Cleaning\nThe plant is designed to meet the requirements of the Industrial Emissions Directive as a minimum for\nreleases to air by a combination of main process design and operation and abatement equipment.\nFlue gases pass from the boiler to the gas cleaning equipment. The gas passes to an electrostatic\nprecipitator (ESP) for the separation of ash carried over from the furnace with the flue gas. Material\ncollected in the ESP will be discharged by means of rotary valves and chain conveyors and then\npneumatically fed to the ash silos or re-injected into the flue gas cleaning system.\nGases leaving the ESP enter the gas cleaning system. This comprises a circo clean reactor and bag\nfilter system. Gases entering the circo clean reactor will be at a temperature of 190 to 230 degrees C\nand will come into contact with a mixture of water, hydrated lime and activated carbon that have been\ninjected into the reactor. The reactor is designed to reduce or remove acidic pollutants such as HCl,\nSO2 and HF by the use of the hydrated lime and dioxins and furans, PCBs, PAHs, mercury vapour and\nheavy metal salts such as mercury chloride by the use of the activated carbon. The injected water enhances the reactions and cools the gas. The control system of the circo clean reactor optimises the\nuse of reactants by balancing the feed rate with the concentration of the pollutants entering the circo\nclean reactor.\nThe final stage of the gas cleaning system is the bag filter unit which separates the particulate material\nfrom the flue gas. The baghouse filter consists of compartments each of which contains a number of\ntubular filter bags. A thick porous layer of particulate builds on the bag surfaces to form a filter cake\nwhich efficiently removes ultra fine particles from the gas stream and the excess lime continues to\nreact with the acid gases.\nBag house residue is discharged from the compartments via the integrated buffer storage by a closed\npneumatic conveying system into the reaction product silos. Silos are equipped with a filter, hopper\nheating and fluidisation system to assist discharge. The residue is then discharged directly into road\nvehicles under dust free conditions for transport off site to a licensed facility.\nNitrogen oxides (NOx) abatement is achieved by the use of both flue gas recirculation (FGR) and\nselective non-catalytic reduction (SNCR). The SNCR is based on the injection of urea into the furnace\nchambers before the boilers and before the lime and carbon injection and before the gas passes to\nbag filters.\nThe cleaned gas then discharges to atmosphere via three 80-metre flues in a common stack at an\nefflux velocity in excess of 15 ms-1 at maximum throughput.\nAncillary Operations\nDemineralised water is required to compensate for boiler blowdown losses. A package\ndemineralisation plant provides this water. The ion exchange resins are regenerated using sodium\nhydroxide and hydrochloric acid and the regeneration effluent is routed through a neutralisation tank\nto the collection pit for reuse where possible.\nAsh Handling\nBottom ash, the combined boiler and ESP ash and the flue gas treatment residue (FGTR) from the\nbag filter system, are each sent for separate disposal off site by licensed contractors subject to waste\nlicensing legislation. FGTR is not mixed with any other ash at any time. The bottom ash is likely to be\nsubject to ferrous and non ferrous metals extraction by the contractors before disposal or reuse. All\noperations will be subject to waste licensing legislation and be tracked by the Environment Agency. At\nleast quarterly sampling of the bottom ash will be carried out to ensure effective burn out is being\nachieved by testing for the “loss on ignition” of the residual ash. All other solid waste residues arising\nfrom the operation of the process will be removed from site, in enclosed containers, for disposal by\nsuitable contractors.\nLiquid Effluent and Site Drainage\nUncontaminated surface water from the roads and parking area that is not reused within the process\nwill be discharged to sewer.\n"]
[]
[]
[]
[]
[]
[]
[]
[]
[]
[]
[]
[]
[]
[]
[]
[]
[]
[]
[]
[]
[]
[]
[]
[]
[]
[]
["Emissions Monitoring\nEmissions from the stack are continuously monitored for: particulate, carbon monoxide (CO), ammonia\n(NH3), sulphur dioxide (SO2), hydrogen chloride (HCl), oxygen (O2), nitrogen oxides (NOx) \nNitrous Oxide (N2O) Carbon Dioxide (CO2) and volatile\norganic compounds (VOC). In addition periodic sampling and measurement will be carried out for\nmetals cadmium (Cd), thallium (Tl), mercury (Hg), antimony (Sb), arsenic (As), lead (Pb), chromium\n(Cr), cobalt (Co), copper (Cu), manganese (Mn), nickel (Ni), vanadium (V), dioxins and furans, dioxin\nlike PCBs and hydrogen fluoride (HF). Periodic measurements are carried out\nbi annually and in some instances annually.\n"]

{"sheet":"Operational Data","index":3,"n_rows":69,"n_cols":10,"rows_kept":69,"cut":false,"hidden":false,"merged":[[5,9,7,9],[56,0,60,0],[33,1,38,1],[3,1,3,2],[7,1,19,1],[23,1,26,1],[28,1,29,1],[9,9,20,9],[21,9,25,9]]}
[{"$f":"+'Cover Page'!$B$29","v":"Annual Performance Report 2024"},null,null,null,{"$f":"+'Cover Page'!$B$33","v":"Kent Enviropower Limited"}]
[]
["Operational Data"]
["Plant Size",560000,null,"tonnes pa",161.4,"MWth",34.5,"MWe",null,"Notes:"]
["No. of combustion lines",3,null,"No. of Turbines:",null,1,null,null,null,"* - RDF to include SRF "]
[null,null,null,null,null,null,null,null,null,"** - Combusted tonnage = tonnes delivered in period + (tonnes in bunker at start of period – tonnes in bunker at end of period), or equivalent calculation depending on plant type"]
["Waste types received","Unit","Q1","Q2","Q3","Q4","Year Total","%"]
["Household / Local Authority","tonnes",90441,85323.700000000012,87785.279999999984,82277.48000000001,{"$f":"SUM(C8:F8)","v":345827.45999999996},{"$f":"IF(G8>0,G8/$G$18,\"-\")","v":0.71489353521304944}]
["Commercial & Industrial ",null,34041.919999999998,15475.24,26786.240000000002,27361.9,{"$f":"SUM(C9:F9)","v":103665.29999999999},0.21429661136776509,null,"*** - CHP plants only"]
["Hazardous ",null,null,null,null,null,0,"-",null,"**** Availability Definition: 'the availability of a line is to be calculated by the number of hours the line reported Continuously Monitored emission levels to the Regulator through the calendar year divided by the total number of hours in that year. \n\nThe overall plant availability is calculated as the Mean of all lines in the plant. For clarity this includes periods of abnormal operation.'  \n\nRationale: The primary function of an Energy from Waste facility is the disposal of waste. It follows therefore that the availability of a plant is determined by the period of time a facility spends undertaking this activity."]
["Clinical",null,null,null,null,null,0,"-"]
["Waste wood (biomass) ",null,null,null,null,null,0,"-"]
["Refuse Derived Fuel * - H'hold/LA",null,null,null,null,null,{"$f":"SUM(C13:F13)","v":0},"-"]
["Refuse Derived Fuel *  - C&I",null,1289.4000000000001,1003.9,1721.22,6813.1,10827.62,2.2382825064682602E-2]
["Food waste",null,1089.52,878.3,834.94,811.4,3614.1600000000003,7.4711812047128798E-3]
["Recyclates waste",null,4698.92,3713.78,4157.3999999999996,4774.16,17344.260000000002,3.5854004615637772E-2]
["Card/Paper",null,696.8,586.84,544.1,640.26,2468,5.101842534152164E-3]
["Total waste received",null,{"$f":"SUM(C8:C17)","v":132257.56},{"$f":"SUM(D8:D17)","v":106981.76000000001},{"$f":"SUM(E8:E17)","v":121829.18},{"$f":"SUM(F8:F17)","v":122678.3},483746.8]
["Rejected Waste ",null,143.19999999999999,154,5,120,{"$f":"SUM(C19:F19)","v":422.2},{"$f":"IF(G19>0,G19/$G$18,\"-\")","v":8.7277063124758657E-4}]
["Unprocessed waste transferred out",null,6485.2400000000007,5178.92,5536.4400000000005,6225.82,{"$f":"SUM(C20:F20)","v":23426.42},{"$f":"IF(G20>0,G20/$G$18,\"-\")","v":4.8427028354502806E-2}]
["Total waste combusted **",null,119287,{"$f":"D18-D20+M21+N21+O21-M26-N26-O26","v":101802.84000000001},{"$f":"E18-E20+P21+Q21+R21-P26-Q26-R26","v":116292.73999999999},{"$f":"F18-F20+S21+T21+U21-S26-T26-U26","v":116452.48000000001},{"$f":"SUM(C21:F21)","v":453835.06000000006},{"$f":"IF(G21>0,G21/$G$18,\"-\")","v":0.93816653670887351}]
[null,null,null,null,null,null,null,null,null,"Password for protected cells\nA password has been set to prevent accidental  editing of cells with formulae. \nIf you still need to make an edit for some reason then the password = 1234"]
["Energy Usage / Export","Unit","Q1","Q2","Q3","Q4","Year Total","KWh/te"]
["Power Generated","MWh",63958,49416,64660,58235,{"$f":"SUM(C24:F24)","v":236269},{"$f":"IF(G24>0,G24*1000/$G$21,\"-\")","v":520.60543757901814}]
["Power Exported",null,49323,36741,49537,44748,{"$f":"SUM(C25:F25)","v":180349},{"$f":"IF(G25>0,G25*1000/$G$21,\"-\")","v":397.38886634276332}]
["Power Used on site",null,{"$f":"SUM(C24-C25)","v":14635},{"$f":"SUM(D24-D25)","v":12675},{"$f":"SUM(E24-E25)","v":15123},{"$f":"SUM(F24-F25)","v":13487},{"$f":"SUM(C26:F26)","v":55920},{"$f":"IF(G26>0,G26*1000/$G$21,\"-\")","v":123.21657123625485}]
["Power Imported",null,55,491,413,317,1276,{"$f":"IF(G27>0,G27*1000/$G$21,\"-\")","v":2.8115941505268451}]
["Parasitic Load","%",{"$f":"IF(C24>0,1-C25/(C24+C27),\"-\")","v":0.22948463593332602},{"$f":"IF(D24>0,1-D25/(D24+D27),\"-\")","v":0.26381068787945583},{"$f":"IF(E24>0,1-E25/(E24+E27),\"-\")","v":0.23874725308499689},{"$f":"IF(F24>0,1-F25/(F24+F27),\"-\")","v":0.23575625085394181},{"$f":"IF(G24>0,1-G25/(G24+G27),\"-\")","v":0.2407796417520891}]
["Thermal Energy Produced ***","MWh",null,null,null,null,{"$f":"SUM(C29:F29)","v":0},{"$f":"IF(G29>0,G29*1000/$G$21,\"-\")","v":"-"}]
["Thermal Energy Exported ***",null,null,null,null,null,0,{"$f":"IF(G30>0,G30*1000/$G$21,\"-\")","v":"-"}]
["R1 value (if applicable)","R1",null,null,null,null,0.6]
[]
["Waste Disposal & Recovery","Unit","Q1","Q2","Q3","Q4","Year Total","% inputs"]
["APC Residues - produced","tonnes",10080.759999999998,8395.7400000000016,10967.16,11072.619999999999,{"$f":"SUM(C34:F34)","v":40516.28},{"$f":"IF(G34>0,G34/$G$21,\"-\")","v":8.9275341574535899E-2}]
["IBA - produced",null,11342.24,10705.82,10927.119999999999,9430.52,42405.7,{"$f":"IF(G35>0,G35/$G$21,\"-\")","v":9.3438572154385766E-2}]
["Metals recycling",null,3675.08,2937.3199999999997,3284.8999999999992,3120.18,{"$f":"SUM(C36:F36)","v":13017.48},2.8683284186990749E-2]
["Other",null,0,0,0,0,{"$f":"SUM(C37:F37)","v":0},"-"]
["Other",null,0,0,0,0,0,"-"]
["Other",null,0,0,0,0,0,"-"]
[]
["Raw Material Usage","Unit","Q1","Q2","Q3","Q4","Year Total","kg or Ltr /te"]
["Mains Water","ltrs",38142.953281423805,35647.293845012973,35228.622580645162,34405.686021505375,{"$f":"SUM(C42:F42)","v":143424.55572858732},{"$f":"IF(G42>0,G42/$G$21,\"-\")","v":0.31602793254577399}]
["Other Water","ltrs",0,0,0,0,0,{"$f":"IF(G43>0,G43/$G$21,\"-\")","v":"-"}]
["Ammonia","kgs",0,0,0,2000,2000,4.4068873832709176E-3]
["Urea","kgs",0,0,11000,0,{"$f":"SUM(C45:F45)","v":11000},2.4237880607990044E-2]
["Activated Carbon","kgs",71000,65000,55000,80000,271000,0.59713324043320926]
["Lime / hydrated lime","kgs",623000,662000,754000,1086000,3125000,6.8857615363608087]
["Caustic Soda","kgs",42000,4000,62000,31000,{"$f":"SUM(C48:F48)","v":139000},{"$f":"IF(G48>0,G48/$G$21,\"-\")","v":0.30627867313732876}]
["Hydrochloric Acid","kgs",37000,46000,53000,26000,162000,0.35695787804494428]
["Sand","kgs",651000,1218000,712000,685000,3266000,7.1964470968814078]
["Salt","kgs",1000,4000,2000,2000,{"$f":"SUM(C51:F51)","v":9000},{"$f":"IF(G51>0,G51/$G$21,\"-\")","v":1.9830993224719127E-2}]
["Fuel oil","ltrs",508764,914420,973700,716760,3113644,6.8607392297985959]
["Gas","cuf",0,0,0,0,0]
["Other",null,0,0,0,0,0]
[]
["Summary ","Line/Unit","Q1","Q2","Q3","Q4","Year Total",null,"Hrs in year "]
["Availability of waste combustion by line, hrs ****",1,2133,1359,2117,1402,{"$f":"SUM(C57:F57)","v":7011},{"$f":"+G57/$I$57","v":0.79815573770491799},8784,"Change this figure to 8784 in a leap year"]
[null,2,1278,1580,1665,1874,6397,{"$f":"+G58/$I$57","v":0.72825591985428051}]
[null,3,1754,1546,1737,1625,6662,0.75842440801457189]
[null,4,0,0,0,0,0,0]
[null,5,0,0,0,0,{"$f":"SUM(C61:F61)","v":0},0]
["Overall Availability, mean avg. of all lines, hrs",null,1721.6666666666667,1495,1839.6666666666667,1633.6666666666667,{"$f":"AVERAGE(G57:G61)","v":4014},0.45696721311475408]
["Hours of turbine operations, hrs",1,2170,2038,2104,2104,8416,0.95810564663023678]
["Hours of turbine operations, hrs",2,0,0,0,0,0,0]
["Hours of heat / steam export",null,null,null,null,null,0,{"$f":"IF(B65>0,G64/I57,\"n/a\")","v":"n/a"}]
["Net Calorific Value of waste","MJ/kg",10.274580095726,10.1835078551279,10.4866686079509,10.6740273581227]
["Abnormal Events","qty.",1,0,0,0,1,{"$f":"IF(G67>0,\"yes\",\"no\")","v":"yes"}]
["Abnormal operation","hours",0.5,0,0,0,0.5,{"$f":"+(G68)/I57","v":5.692167577413479E-5}]
["Permit Breaches","qty.",0,3,1,3,7,{"$f":"IF(G69>0,\"yes\",\"no\")","v":"yes"}]

{"sheet":"Operational Summary","index":4,"n_rows":67,"n_cols":11,"rows_kept":67,"cut":false,"hidden":false,"merged":[[4,0,26,8],[30,0,51,8],[4,10,13,13],[30,10,39,13],[54,1,54,8],[53,1,53,8],[69,1,69,8],[54,10,64,13],[63,1,63,8],[59,1,59,8],[55,1,55,8],[56,1,56,8],[57,1,57,8],[58,1,58,8],[68,1,68,8],[64,1,64,8],[65,1,65,8],[66,1,66,8],[67,1,67,8],[60,1,60,8],[61,1,61,8],[62,1,62,8]]}
[{"$f":"+'Cover Page'!$B$29","v":"Annual Performance Report 2024"},null,null,null,{"$f":"+'Cover Page'!$B$33","v":"Kent Enviropower Limited"}]
[]
["Summary of Plant Operations and Maintenance during the reporting year",null,null,null,null,null,null,null,null,null,"Notes:"]
[]
["Line 2 and Line 1 underwent planned maintenance outages in March and October respectively, with particular focus in the following areas:\n\n-\tFurnace refractory inspection and repair/replacement, with particular focus on the furnace roof to improve plant availability\n-\tModification of furnace crossover profile to eliminate ash build-up inside the furnace\n-\tBoiler cleaning and inspection using non-destructive testing\n-\tDry-ice cleaning of Electrostatic Precipitators to improve efficiency\n-\tInspection and overhaul of 120+ valves to improve efficiency\n-\tInconel weld overlay of boiler tubes to protect against corrosion from flue gas\n-\tInspection and replacement of residue ash hopper walls where thin to protect against potential fugitive dust emissions\n-\tInspection of common air ducts in the Baghouse Filters to protect against potential fugitive dust emissions\n-\tInspection and cleaning of electrical system components",null,null,null,null,null,null,null,null,null,"Include summary of key operational and/or maintenance activity undertaken in the year, such as any major component upgrades and/or replacements "]
[]
[]
[]
[]
[]
[]
[]
[]
[]
[]
[]
[]
[]
[]
[]
[]
[]
[]
[]
[]
[]
[]
[]
["Summary of Residue Handling for the reporting year"]
[]
["Bottom ash, the combined boiler and ESP ash and the flue gas treatment residue (FGTR) from the\nbag filter system, are each sent for separate disposal off site by licensed contractors subject to waste\nlicensing legislation. FGT is not mixed with any other ash at any time. The bottom ash is likely to be\nsubject to ferrous and non ferrous metals extraction.\nIBA is subject to hazardous assessment twice a month and approx. 42 vehicles are sent off site every week for recovery.\nThe APC residues are tested quarterly and approx. 35 tankers are sent off site every week. ",null,null,null,null,null,null,null,null,null,"Include in here a summary of residue handling regimes and destinations "]
[]
[]
[]
[]
[]
[]
[]
[]
[]
[]
[]
[]
[]
[]
[]
[]
[]
[]
[]
[]
[]
[]
[{"$f":"+'Cover Page'!C39","v":2024},"Plant shut-downs"]
["Date","Reason for shut-down",null,null,null,null,null,null,null,null,"Provide a very brief reason for plant shut-down e.g. \"Shut-down prior to major outage\"; \"Emergency shut-down due to boiler tube leak\"\n\nThere is no need to include periods of hot-standby here (e.g. to clear feed chute hopper blockages).\n\nFor clinical waste incinerators which require regular shut-downs for boiler cleaning, there is no need to record these here. "]
["January","Line 2 – waste feed distributor failure followed by bed defluidisation – 10 days off"]
["February","Line 3 – AF004 blockage – 13 days off"]
["March","Line 2 – Planned outage – 24 days\nLine 3 – Bed defluidisation – 5 days"]
["April","Line 2 – Bed defluidisation – 4 days"]
["May","Line 1 – Compensator failure – 6 days\nLine 2 – Tube leak – 5 days\nLine 3 – Cast resin transformer failure – 2 days\nLine 3 - Gas Recirculation fan failure – 4 days\nLine 1 and Line 2 – boiler water quality issues – 3 days each"]
["June","Line 3 - Bed defluidisation – 9 days\nLine 1 – ID Fan drive failure – 5 days\nLine 1 – Rowitec roof refractory damaged – 15 days\nLine 2 - Bed defluidisation – 6 days"]
["July","Line 2 - Bed defluidisation – 5 days"]
["August","Line 3 – AF004 ash blockage – 11 days\nLine 2 – Bed defluidisation – 4 days\nAll 3 Lines – steam damaged instrumentation – Line 1 - 3 days / Line 2 – 2 days / Line 1 – 4 days\nLine 3 – waste feed screw failure"]
["September","Line 2 – Tube Leak – 1 day"]
["October","Line 1 - Planned outage – 34 days\nLine 2 – Tube leak – 3 days\nLine 3 – AF004 blockage – 10 days"]
["November","Line 3 – High dust level investigation – 2 days\nLine 2 – Tube leak repair – 6 days"]
["December","Line 3 – Filter bag replacement – 3 days\nLine 3 – Ash crane 2 failure and blocked Circoclean – 2 days"]

{"sheet":"Perf. Form 1","index":5,"n_rows":59,"n_cols":10,"rows_kept":59,"cut":false,"hidden":false,"merged":[[39,7,39,8],[38,7,38,8],[37,7,37,8],[9,0,9,9],[10,0,10,1],[10,2,10,3],[10,4,10,5],[10,6,10,7],[10,8,10,9],[11,0,11,1],[11,2,11,3],[11,4,11,5],[11,6,11,7],[11,8,11,9],[12,0,12,1],[12,2,12,3],[12,4,12,5],[12,6,12,7],[12,8,12,9],[15,0,15,1],[15,2,15,3],[15,4,15,5],[15,6,15,7],[15,8,15,9],[2,0,2,4],[2,6,2,8],[3,1,3,4],[5,3,5,4],[5,6,5,7],[8,0,8,1],[8,2,8,3],[8,4,8,5],[8,6,8,7],[8,8,8,9],[16,0,16,9],[13,0,13,1],[13,2,13,3],[13,4,13,5],[13,6,13,7],[13,8,13,9],[14,0,14,3],[14,4,14,5],[14,6,14,7],[14,8,14,9],[17,0,17,1],[17,2,17,3],[17,4,17,5],[17,6,17,7],[17,8,17,9],[18,0,18,1],[18,2,18,3],[18,4,18,5],[18,6,18,7],[18,8,18,9],[19,0,19,1],[19,2,19,3],[19,4,19,5],[19,6,19,7],[19,8,19,9],[20,0,20,1],[20,2,20,3],[20,4,20,5],[20,6,20,7],[20,8,20,9],[21,0,21,1],[21,2,21,3],[21,4,21,5],[21,6,21,7],[21,8,21,9],[22,0,22,3],[22,4,22,5],[22,6,22,7],[22,8,22,9],[31,0,31,3],[31,7,31,8],[32,0,32,3],[32,4,32,5],[32,7,32,8],[33,0,33,3],[33,4,33,5],[33,7,33,8],[23,0,23,3],[23,4,23,5],[23,6,23,7],[23,8,23,9],[25,0,25,9],[26,0,28,9],[36,0,36,3],[36,4,36,5],[36,7,36,8],[42,0,42,3],[42,4,42,5],[42,7,42,8],[34,0,34,3],[34,4,34,5],[34,7,34,8],[35,0,35,3],[35,4,35,5],[35,7,35,8],[37,0,37,3],[41,0,41,3],[40,0,40,3],[39,0,39,3],[38,0,38,3],[41,4,41,5],[40,4,40,5],[39,4,39,5],[38,4,38,5],[37,4,37,5],[41,7,41,8],[40,7,40,8],[52,0,52,1],[54,0,54,9],[55,0,56,9],[43,0,43,9],[44,0,45,9],[48,0,48,1],[48,2,48,9],[50,0,50,1],[51,0,51,1]]}
[{"$f":"+'Cover Page'!C39","v":2024}," Annual Reporting Performance Form 1"]
[]
[{"$f":"+'Cover Page'!B31","v":"Permit EPR/BR4551IC"},null,null,null,null,"Operator: ",{"$f":"+'Cover Page'!B37","v":"Kent Enviropower Limited"}]
["Facility:",{"$f":"+'Cover Page'!B33:I33","v":"Kent Enviropower Limited"},null,null,null,"Form:","Performance 1"]
[]
["Reporting  Period from: ",null,null,"2024-01-01",null,"to:","2024-12-31"]
[]
[{"$f":"+A1","v":2024},"Annual Reporting of Waste Disposal and Recovery"]
["Waste Description",null,"Disposal Route(s)",null,"Disposal Tonnes",null,"Recovery Tonnes",null,"% / tonne of waste incinerated"]
["1) Hazardous Wastes"]
["APC Residues (including FGT, Boiler and ESP ash)",null,"Landfill",null,10882.9,null,null,null,{"$f":"IF((E11+G11)>0,(E11+G11)/'Operational Data'!$G$21, \"-\")","v":2.3979857351699531E-2}]
["APC Residues (including FGT, Boiler and ESP ash)",null,"Recycling",null,null,null,29633.38,null,{"$f":"IF((E12+G12)>0,(E12+G12)/'Operational Data'!$G$21, \"-\")","v":6.5295484222836375E-2}]
[null,null,null,null,null,null,null,null,{"$f":"IF((E13+G13)>0,(E13+G13)/'Operational Data'!$G$21, \"-\")","v":"-"}]
[null,null,null,null,null,null,null,null,{"$f":"IF((E14+G14)>0,(E14+G14)/'Operational Data'!$G$21, \"-\")","v":"-"}]
["Total Hazardous Waste",null,null,null,{"$f":"SUM(E11:F14)","v":10882.9},null,{"$f":"SUM(G11:H14)","v":29633.38},null,{"$f":"IF((E15+G15)>0,(E15+G15)/'Operational Data'!$G$21, \"-\")","v":8.9275341574535899E-2}]
[]
["2) Non-Hazardous Wastes"]
["IBA",null,"Recycling",null,null,null,40516.28,null,{"$f":"IF((E18+G18)>0,(E18+G18)/'Operational Data'!$G$21, \"-\")","v":8.9275341574535899E-2}]
["Ferrous Metal",null,"Recycling",null,null,null,13017.48,null,{"$f":"IF((E19+G19)>0,(E19+G19)/'Operational Data'!$G$21, \"-\")","v":2.8683284186990749E-2}]
["Process Water",null,"N/A",null,null,null,null,null,{"$f":"IF((E20+G20)>0,(E20+G20)/'Operational Data'!$G$21, \"-\")","v":"-"}]
[null,null,null,null,null,null,null,null,{"$f":"IF((E21+G21)>0,(E21+G21)/'Operational Data'!$G$21, \"-\")","v":"-"}]
[null,null,null,null,null,null,null,null,{"$f":"IF((E22+G22)>0,(E22+G22)/'Operational Data'!$G$21, \"-\")","v":"-"}]
["Total Non-Hazardous Waste",null,null,null,{"$f":"SUM(E18:F22)","v":0},null,{"$f":"SUM(G18:H22)","v":53533.759999999995},null,{"$f":"IF((E23+G23)>0,(E23+G23)/'Operational Data'!$G$21, \"-\")","v":0.11795862576152664}]
["TOTAL WASTE",null,null,null,{"$f":"+E23+E15","v":10882.9},null,{"$f":"+G23+G15","v":83167.14},null,{"$f":"IF((E24+G24)>0,(E24+G24)/'Operational Data'!$G$21, \"-\")","v":0.20723396733606253}]
[]
["Operator’s comments :"]
["APCr continues to shift significantly from landfill to recycling and this trend is set to continue into 2025."]
[]
[]
[]
[{"$f":"+A1","v":2024},"Annual Reporting of Water and Other Raw Material Usage"]
["Raw Material",null,null,null,"Usage",null,"Unit","Specific Usage",null,"Unit"]
["Mains Water",null,null,null,{"$f":"+'Operational Data'!G42/1000","v":143.42455572858734},null,"m3",{"$f":"IF(E33>0,E33/'Operational Data'!$G$21,\"-\")","v":3.1602793254577403E-4},null,"m3/te"]
["Total Water",null,null,null,{"$f":"+'Operational Data'!G43+'Operational Data'!G42/1000","v":143.42455572858734},null,"m3",{"$f":"IF(E34>0,E34/'Operational Data'!$G$21,\"-\")","v":3.1602793254577403E-4},null,"m3/te"]
["Urea / Ammonia",null,null,null,{"$f":"+'Operational Data'!G44","v":2000},null,"kg",{"$f":"IF(E35>0,E35/'Operational Data'!$G$21,\"-\")","v":4.4068873832709176E-3},null,"kg/te"]
["Activated Carbon",null,null,null,{"$f":"+'Operational Data'!G46","v":271000},null,"kg",{"$f":"IF(E36>0,E36/'Operational Data'!$G$21,\"-\")","v":0.59713324043320926},null,"kg/te"]
["Lime / hydrated lime / Sodium Bicarb.",null,null,null,{"$f":"+'Operational Data'!G47","v":3125000},null,"kg",{"$f":"IF(E37>0,E37/'Operational Data'!$G$21,\"-\")","v":6.8857615363608087},null,"kg/te"]
["Caustic Soda",null,null,null,{"$f":"+'Operational Data'!G48","v":139000},null,"kg",{"$f":"IF(E38>0,E38/'Operational Data'!$G$21,\"-\")","v":0.30627867313732876},null,"kg/te"]
["Hydrochloric Acid",null,null,null,{"$f":"+'Operational Data'!G49","v":162000},null,"kg",{"$f":"IF(E39>0,E39/'Operational Data'!$G$21,\"-\")","v":0.35695787804494428},null,"kg/te"]
["Sand",null,null,null,{"$f":"+'Operational Data'!G50","v":3266000},null,"kg",{"$f":"IF(E40>0,E40/'Operational Data'!$G$21,\"-\")","v":7.1964470968814078},null,"kg/te"]
["Salt",null,null,null,{"$f":"+'Operational Data'!G51","v":9000},null,"kg",{"$f":"IF(E41>0,E41/'Operational Data'!$G$21,\"-\")","v":1.9830993224719127E-2},null,"kg/te"]
["Fuel oil",null,null,null,{"$f":"+'Operational Data'!G52","v":3113644},null,"ltrs",{"$f":"IF(E42>0,E42/'Operational Data'!$G$21,\"-\")","v":6.8607392297985959},null,"ltrs\\te"]
[]
["Operator’s comments :"]
["No comments for this section."]
[]
[]
[{"$f":"+A31","v":2024},"Annual Reporting of other performance indicators "]
["Parameter",null,"Results by Line"]
[null,null,"A1","A2","A3","A4","A5",null,"Turbine 1","Turbine 2"]
["Operating hours for the year, hours",null,7011,6397,6662,null,null,null,8416]
["Number of periods of abnormal operation, qty.",null,null,null,1]
["Cumulative hours of abnormal operation for this year, hours",null,null,null,0.5]
[]
["Operator’s comments :"]
["The number of periods of abnormal operation have reduced in 2024 from 2023."]
[]
[]
["Signed: ",null,null,null,null,null,"Date:","31st Jan 2025"]

{"sheet":"Energy Form 1","index":6,"n_rows":29,"n_cols":8,"rows_kept":29,"cut":false,"hidden":false,"merged":[[2,6,2,8],[4,1,4,4],[6,3,6,4],[6,6,6,7],[8,0,8,2],[8,3,8,4],[8,6,8,8],[9,0,9,2],[9,3,9,4],[9,6,9,8],[10,0,10,2],[10,3,10,4],[10,6,10,8],[11,0,11,2],[11,3,11,4],[11,6,11,8],[12,0,12,2],[12,3,12,4],[12,6,12,8],[13,0,13,2],[13,3,13,4],[13,6,13,8],[14,0,14,2],[14,3,14,4],[14,6,14,8],[15,0,15,2],[15,3,15,4],[15,6,15,8],[17,0,17,8],[18,0,24,8]]}
[{"$f":"+'Cover Page'!C39","v":2024}," Annual Reporting of Energy Usage/Export"]
[]
[{"$f":"+'Cover Page'!B31","v":"Permit EPR/BR4551IC"},null,null,null,null,"Operator: ",{"$f":"+'Cover Page'!B37","v":"Kent Enviropower Limited"}]
[]
["Facility:",{"$f":"+'Cover Page'!B33:I33","v":"Kent Enviropower Limited"},null,null,null,"Form:","Energy 1"]
[]
["Reporting  Period from: ",null,null,{"$f":"+'Perf. Form 1'!D6:E6","v":"2024-01-01"},null,"to:",{"$f":"+'Perf. Form 1'!G6:H6","v":"2024-12-31"}]
[]
["Energy Source",null,null,"Energy Usage",null,"Unit","Specific Usage (KWh/tonne incinerated"]
["Electricity Produced",null,null,{"$f":"+'Operational Data'!G24","v":236269},null,"MWh",{"$f":"+'Operational Data'!H24","v":520.60543757901814}]
["Electricity Imported   ",null,null,{"$f":"+'Operational Data'!G27","v":1276},null,"MWh",{"$f":"+'Operational Data'!H27","v":2.8115941505268451}]
["Electricity Exported",null,null,{"$f":"+'Operational Data'!G25","v":180349},null,"MWh",{"$f":"+'Operational Data'!H25","v":397.38886634276332}]
["Gas Oil",null,null,2646.5974000000001,null,"tonnes",70.45]
["Steam/hot water exported",null,null,{"$f":"+'Operational Data'!G30","v":0},null,"GWh",{"$f":"+'Operational Data'!H30","v":"-"}]
[]
[]
[]
["Operator’s comments :"]
["A similar year to 2023 with the exception of imported electricity that was more due to site going into island mode for a short period so that uK Power Networks could complete some work."]
[]
[]
[]
[]
[]
[]
[]
[]
[]
["Signed: ",null,null,null,null,null,"Date:","31st Jan 2025"]

{"sheet":"Permit Compliance","index":7,"n_rows":48,"n_cols":12,"rows_kept":48,"cut":false,"hidden":false,"merged":[[13,0,13,1],[13,2,13,4],[13,5,13,8],[11,0,11,1],[11,2,11,4],[11,5,11,8],[12,0,12,1],[12,2,12,4],[12,5,12,8],[9,0,9,1],[9,2,9,4],[9,5,9,8],[10,0,10,1],[10,2,10,4],[10,5,10,8],[7,0,7,1],[7,2,7,8],[8,0,8,1],[8,2,8,4],[8,5,8,8],[32,7,32,9],[33,1,33,3],[33,4,33,6],[47,7,47,9],[34,1,34,3],[34,4,34,6],[35,1,35,3],[35,4,35,6],[33,7,45,9],[46,7,46,9],[37,1,37,3],[37,4,37,6],[47,1,47,3],[38,4,38,6],[39,4,39,6],[40,4,40,6],[8,11,20,11],[31,0,31,10],[18,0,18,10],[36,1,36,3],[36,4,36,6],[22,1,22,2],[23,1,23,2],[14,0,14,1],[14,2,14,4],[14,5,14,8],[15,0,15,1],[16,2,16,4],[16,5,16,8],[15,2,15,4],[15,5,15,8],[16,0,16,1],[24,1,24,2],[28,1,28,2],[29,0,29,8],[19,7,19,8],[19,1,19,2],[19,3,19,5],[21,3,21,5],[22,3,22,5],[23,3,23,5],[24,3,24,5],[28,3,28,5],[21,1,21,2],[26,1,26,2],[25,1,25,2],[26,3,26,5],[25,3,25,5],[27,1,27,2],[38,1,38,3],[39,1,39,3],[40,1,40,3],[41,1,41,3],[32,1,32,3],[27,3,27,5],[32,4,32,6],[41,4,41,6],[44,4,44,6],[45,4,45,6],[46,4,46,6],[47,4,47,6],[42,1,42,3],[43,1,43,3],[44,1,44,3],[45,1,45,3],[46,1,46,3],[42,4,42,6],[43,4,43,6]]}
[{"$f":"+'Cover Page'!$B$29","v":"Annual Performance Report 2024"},null,null,null,{"$f":"+'Cover Page'!$B$33","v":"Kent Enviropower Limited"}]
[]
["Summary of Permit Compliance"]
[]
["Compliance with permit limits for continuously monitored pollutants"]
[]
["The plant met its emission limits as shown in the table below:"]
["Substance",null,"Percentage time compliant during operationNote 1",null,null,null,null,null,null,null,null,"Notes:"]
[null,null,"Half-hourly limit",null,null,"Daily limit",null,null,null,null,null,"Note 1: Please report to 2 decimal places, i.e. xx.xx%\n\nNote 2: Please enter into this table any permit non-compliances that the EA has given a CCS score for. Please also enter any other non-compliances which you have notified to the EA (e.g. ELV exceedances) but which have not yet been assessed by the EA. There is no need to enter any notifications which were subsequently assessed by the EA not to be permit breaches.  \n\nNote 3: Please enter information here (rather than just referencing the notifications that were sent to the EA) including where relevant the incineration line reference, pollutant and value of the measured result for any ELV exceedances.   \n\n"]
["Particulates",null,1,null,null,0.99890000000000001]
["Oxides of nitrogen",null,1,null,null,1]
["Sulphur dioxide",null,1,null,null,1]
["Carbon monoxide",null,"\n99.99% 95% of 10-min averages",null,null,0.99780000000000002]
["Total organic carbon",null,1,null,null,1]
["Hydrogen chloride",null,0.99990000000000001,null,null,1]
["Hydrogen fluoride",null,"NA",null,null,"NA"]
[]
[]
["Summary of non-compliances under the permit Note 2"]
["Date","Summary of non-compliance Note 3",null,"Reason ",null,null,"Measures taken to prevent reoccurrence","CCS score if applicable*"]
[null,null,null,null,null,null,null,"Impact","Root cause"]
["2024-03-28","028 L3 HCL SO2 abnormal operation",null,"The bed de fluidisation due to trouser leg blockage caused significant disturbace to the abatement system.",null,null,"Implementation of furnace camera to see the entire bed to identify bed disturbances.\n\nMore effective use of bed improvement procedure ALT-G23-WI-1300\n\nRemoval of Aluminium from the fuel infeed\n\nClear significant blockages when they occur",null,"See the \"Reason\" column"]
["2024-04-20","Schedule 5 number 099 -  Line 2 Elevated Daily Average CO of 65 mg/Nm3 against a permit limit of 50 mg/Nm3",null,"Poor/Incomplete combustion, waste feed chute backing up, waste falling onto bed. These conditions also led to 70mbar fall from the crossover, collapsing the sand (heavy bed)",null,null,"Continue to monitor bed conditions, sand usage and key operating parameters. \n\nFreeboard temperatures to be controlled <1000degC.\n\nLook at changing the SA (secondary air) philosophy when single side feeding.\n\nCheck operation of Line 2 SA damper",null,"See the \"Reason\" column"]
["2024-05-22","Schedule 5 number 100 -  Line 2 Elevated Daily Average CO of 56 mg/Nm3 against a permit limit of 50 mg/Nm3",null,"Poor combustion due to low temperatures on the bed allowing waste to not completely burn off. Low FB temperatures cause CO formation from waste as well as burner operations.",null,null,"Continue to monitor bed conditions, sand usage and key operating parameters. \n\nFreeboard temperatures to be controlled <1000degC.\n\nLook at changing the SA (secondary air) philosophy when single side feeding.\n\nCheck operation of Line 2 SA damper\n\nShutdown tracker missed, full shutdown was not achieved, and waste was put back which re validated the period.",null,"See the \"Reason\" column"]
["2024-06-11T14:00:00","Schedule 5 number 101 - Elevated first half year compliance monitoring on line 3 for Dioxins/Furans (monitoring result 0.099 ng/m3 against a permit limit of 0.06 ng/m3)",null,"Possible ne nova synthesis occurring at the back end of the boiler in the 300/400°C temp range, fly ash stuck to the tubes and wall can desorb dioxins back into the stream. Also, TOC spike during the test period, can create some dioxins that are picked up on the test. ",null,null,"Dioxin retested and passed test\n\nCarry out performance cleans when end of boiler temperature levels are high\n\nOnly test the system if the combustion control is stable to ensure a representative result.\n\nEnsure dust levels are as low as possible to minimise dioxin levels",null,"See the \"Reason\" column"]
["2024-08-23T23:00:00","Schedule 5 number 102 - 9 elevated CO readings recorded. ",null,"Data revalidated when coming back on waste. Operations team were unaware that we were registering CO when we were in shutting down mode. CO counter showed 8 x CO’s when waste was initiated.",null,null,"CEMS to show counters when we are in shutdown mode, and to disappear when data is invalidated. \n\nIf burners are going to be on low load for a longer period, set minimum load to 20% to reduce the CO formation.\n\nConduct a full inspection of burners, poor combustion efficiency at low load could be improved. (Line 3 300mg/Nm2 @ 15%, Line 2 150mg/Nm3 @15%.)",null,"See the \"Reason\" column"]
["2024-10-23","Schedule 5 number 103 - Elevated Dioxins on two lines. Permit limit is 0.06 ng/m3\nLine 2 recorded 0.1 ng/m3\nLine 3 recorded 0.13 ng/m3",null,"This is still being investigated and the EA Dioxin protocal is in progress of extra testing",null,null,"Root cause analysis in progress",null,"See the \"Reason\" column"]
["2024-11-07","Schedule 5 number 104 - Elevated Daily Dust on Line 3 (Permit limit is 5.00 mg/m3 and 5.20 has been recorded)",null,"This is still being investigated and the EA Dioxin protocal is in progress of extra testing",null,null,"Root cause analysis in progress",null,"See the \"Reason\" column"]
["2024-12-20","Schedule 5 number 105 - Line 3 elevated half hour emission of HCL (recorded a reading of 74.3 against a permit limit of 60.0)",null,"Currently being investigated",null,null,"Root cause analysis in progress",null,"See the \"Reason\" column"]
["*If the Environment Agency (EA) has given a Compliance Classification Scheme (CCS) score due to a permit non-compliance it should be entered here (CCS4 = No impact; CCS3 = Minor impact; CCS2 = Significant impact; CCS1 = Major impact). If the EA has not yet assessed a non-compliance which you have notified to them, these columns should be left blank. Enter N/A if no score was given for the root cause.  "]
[]
["Summary of any complaints received and actions to taken to resolve them."]
["Date","Summary of complaint [including Line/Reference]",null,null,"Reason (including whether substantiated by the operator or the EA)",null,null,"Measures taken to prevent reoccurrence"]
["2024-01-11","Odour",null,null,"Substantiated by the operator based on the wind direction",null,null,"All odour complaints have been justified on wind direction information. Following any odour complaint the facility carries out an odour survey and checks all odour controls are in place and compliant. The complainant is then contacted (if details are avialable) and advised of any findings and very often invited to the facility for a site tour."]
["2024-02-12","Odour",null,null,"Substantiated by the operator based on the wind direction"]
["2024-02-12","Odour",null,null,"Substantiated by the operator based on the wind direction"]
["2024-03-10T19:00:00","Odour",null,null,"Substantiated by the operator based on the wind direction"]
["2024-03-11T09:00:00","Odour",null,null,"Substantiated by the operator based on the wind direction"]
["2024-04-17","Odour",null,null,"Substantiated by the operator based on the wind direction"]
["2024-04-17","Odour",null,null,"Substantiated by the operator based on the wind direction"]
["2024-04-18","Odour",null,null,"Substantiated by the operator based on the wind direction"]
["2024-04-20","Odour",null,null,"Substantiated by the operator based on the wind direction"]
["2024-05-07","Odour",null,null,"Substantiated by the operator based on the wind direction"]
["2024-05-18","Odour",null,null,"Substantiated by the operator based on the wind direction"]
["2024-06-03T07:26:00","Odour",null,null,"Substantiated by the operator based on the wind direction"]
["2024-06-06T17:00:00","Odour",null,null,"Substantiated by the operator based on the wind direction"]
["2024-06-11T09:00:00","Visual",null,null," IBA Offtaker have raised the issue of receiving unburnt waste in with the IBA",null,null,"Review conducted on combustion control and resolved"]
["2024-10-31","Odour",null,null,"Substantiated by the operator based on the wind direction",null,null,"As above odour"]

{"sheet":"Improvements","index":8,"n_rows":39,"n_cols":5,"rows_kept":39,"cut":false,"hidden":false,"merged":[[37,0,37,8],[38,0,47,8],[4,0,4,8],[5,0,13,8],[15,0,15,8],[16,0,24,8],[26,0,26,8],[27,0,35,8]]}
[{"$f":"+'Cover Page'!$B$29","v":"Annual Performance Report 2024"},null,null,null,{"$f":"+'Cover Page'!$B$33","v":"Kent Enviropower Limited"}]
[]
["Summary of Plant Improvements"]
[]
["Summary of any efficiency improvements that have been completed within the year."]
["Line 2 and Line 1 underwent planned maintenance outages in March and October respectively, with particular focus in the following areas:\n\n-\tFurnace refractory inspection and repair/replacement, with particular focus on the furnace roof to improve plant availability\n-\tModification of furnace crossover profile to eliminate ash build-up inside the furnace\n-\tBoiler cleaning and inspection using non-destructive testing\n-\tDry-ice cleaning of Electrostatic Precipitators to improve efficiency\n-\tInspection and overhaul of 120+ valves to improve efficiency\n-\tInconel weld overlay of boiler tubes to protect against corrosion from flue gas\n-\tInspection and replacement of residue ash hopper walls where thin to protect against potential fugitive dust emissions\n-\tInspection of common air ducts in the Baghouse Filters to protect against potential fugitive dust emissions\n-\tInspection and cleaning of electrical system components\n\n"]
[]
[]
[]
[]
[]
[]
[]
[]
[]
["Summary of any permit improvement conditions that have been completed within the year and the resulting environmental benefits."]
["No permit improvement conditions completed."]
[]
[]
[]
[]
[]
[]
[]
[]
[]
["Summary of any changes to the plant or operating techniques which required a variation to the permit and a summary of the resulting environmental impact."]
["No permit changes to plant or operating techniques that require a permit variation."]
[]
[]
[]
[]
[]
[]
[]
[]
[]
["Summary of any other improvements made to the plant or planned to be made and a summary of the resulting environmental benefits."]
["All 3 lines had all 1,708 filter bags (each) replaced in Quarter 4 to help reduce dust emissions.\n\nThere are currently around 60 improvement projects in progress which include :\n-\tinstallation of a new water treatment plant that will reduce the amount of chemicals required,\n-\tinstallation of furnace cameras to help diagnose any unusual operation of the furnace\n-\tinstallation of individual dust monitors in each filter bag chamber to help diagnose any unusual dust emissions\n-\tredesign of our Primary Air Fans to improve reliability\n-\tinstallation of a new air compressor with variable speed drive that will improve efficiency\n-\treplacement of the turbine control system"]

{"sheet":"Public Liasion","index":9,"n_rows":29,"n_cols":5,"rows_kept":29,"cut":false,"hidden":false,"merged":[[16,0,16,1],[16,2,16,8],[5,0,5,1],[5,2,5,8],[6,0,7,1],[8,0,9,1],[10,0,11,1],[12,0,13,1],[12,2,13,8],[15,0,15,8],[6,2,11,8],[25,0,26,1],[25,2,26,8],[28,0,28,8],[17,0,18,1],[19,0,20,1],[21,0,22,1],[17,2,22,8],[23,0,24,1],[23,2,24,8]]}
[{"$f":"+'Cover Page'!$B$29","v":"Annual Performance Report 2024"},null,null,null,{"$f":"+'Cover Page'!$B$33","v":"Kent Enviropower Limited"}]
[]
["Details of Public & Stakeholder Liaison"]
[]
["Summary of events held during the reporting year."]
["Date",null,"Description"]
["2024-03-05",null,"The Facility has an active liaison group involving representatives from the following stakeholders:\n\n• Chairman - Mr Brian White\n• Environment Agency \n• 10 Local Residents \n• Councillors Walker and Hammond (TMBC members) \n• Councillors Robertson, Harwood and Daley (MBC members). Cllr Daley is also a member of KCC.\n• Councillors Homewood and Bird (KCC members)\n• Maidstone Borough Council Environmental Health, Wilcock \n• Councillors Walker and Balcombe (Aylesford Parish Council)\n• Tonbridge & Malling & Maidstone Borough Council Environmental Health \n• Kent County Council Waste Management \n• Kent Enviropower"]
[]
["2024-06-10"]
[]
["2024-11-04"]
[]
[]
[]
[]
["List of events planned for next year"]
["Date",null,"Description"]
["2025-02-01",null,"Opposite are the months for the Liaison meetings planned for 2024. There have been some spaces that have become available at the meeting. Invites have been sent out to prospective new members and all spaces have now been filled."]
[]
["2025-06-01"]
[]
["2025-10-01"]
[]
[]
[]
[]
[]
[]
["If you wish to be involved in the public liaison programme, please contact \nBrian White (Chairman) - Email: drbdwhite@yahoo.co.uk"]

{"sheet":"CO2 N2O","index":10,"n_rows":26,"n_cols":6,"rows_kept":26,"cut":false,"hidden":false,"merged":[[22,2,22,3],[25,1,25,3],[16,2,16,3],[4,0,4,3],[9,0,9,3],[17,0,17,3],[13,0,13,3],[12,0,12,1],[8,2,8,3],[11,2,11,3],[19,2,19,3]]}
[{"$f":"+'Cover Page'!$B$29","v":"Annual Performance Report 2024"},null,{"$f":"+'Cover Page'!$B$33","v":"Kent Enviropower Limited"}]
[]
["Carbon dioxide emissions and biogenic content of waste inputs",null,null,null,null,"Notes:"]
[]
["Carbon dioxide emissions (all types of plant)"]
[null,"Annual mass of carbon dioxide released","tonnes ",518000]
[null,"Annual mass of carbon dioxide released per tonne of waste burned","t CO2 / t waste ",1.2]
[null,"Annual mass of carbon dioxide released per MWh of energy exported","t CO2 / MWh export ",2.87]
[null,"Description of how annual carbon dioxide mass emission has been calculated. \nSee Note 1","CO2 is obtained from a QAL 2 calibrated CEMS",null,null,"Note 1: All permits require operators to continuously monitor CO2 to EN14181 and flow to BS EN 16911-2 (unless otherwise agreed in writing). Operators must therefore use the results from these instruments to calculate their annual CO2 emissions. Where an operator does not have a flow meter calibrated to BS EN 16911-2, the averaged flow measurement from that year's periodic monitoring can be used instead. If the plant does not have calibrated CO2 CEMS, a suitably justified emissions factor can be used."]
["Nitrous oxide emissions (only plants which use ammonia or urea to abate NOx emissions)"]
[null,"Annual mass emissions of nitrous oxide","tonnes N2O",9.6300000000000008]
[null,"Description of how annual nitrous oxide mass emission has been calculated\nSee Note 2","N2O is obtained from a QAL 2 calibrated CEMS",null,null,"Note 2: All permits require operators to continuously monitor N2O to EN14181 and flow to BS EN 16911-2, unless otherwise agreed in writing. Operators must therefore use the results from these instruments to calculate their annual N2O emissions. Where an operator does not have a flow meter calibrated to BS EN 16911-2, the averaged flow measurement from periodic monitoring can be used instead. If the plant does not have calibrated N2O CEMS, data from periodic monitoring or a suitably justified emissions factor can be used instead."]
["Total annual carbon dioxide + nitrous oxide emissions. \nSee Note 3. ",null,"tonnes CO2e",2552,null,"Note 3: Total annual carbon dioxide and nitrous oxide emissions reported as carbon dioxide equivalent where 1 tonne nitrous oxide is equivalent to 265 tonnes carbon dioxide."]
["Biogenic CO2 emissions (See Note 4)",null,null,null,null,"Note 4: Only plants combusting residual municipal waste, refuse derived fuel or solid recovered fuel need complete this section. "]
[null,"Percentage of total carbon dioxide emissions arising from biogenic waste","%",0.56000000000000005]
[null,"No. of measurements undertaken","Number","1 month sampling"]
[null,"Description of how percentage biogenic carbon dioxide emissions have been measured or calculated.\nSee Note 5","Determination of biogenic carbon content of fuel from stationary sources (based on ASTM D6866/EN ISO 13833)",null,null,"Note 5: The results from C14 sampling should be used if this is carried out at the plant (either via an installed sampler or from spot samples).  \nOtherwise, as an approximation (and in lieu of any more accurate metrics which may be developed in future), the measured or estimated biogenic fraction by net calorific value (see Note 6) can be assumed to be the same as the biogenic CO2 fraction of the total CO2 emissions from the plant. "]
["Biogenic fraction of waste feedstock (See Note 4)"]
[null,"Yearly average biogenic percentage of the waste by net calorific value (NCV)","%",0.52470000000000006]
[null,"Description of how biogenic percentage (by NCV) has been calculated or estimated. \nSee Note 6","Annual waste sampling was used to determine calculations. C14 samplers are currently being consodered for installation.",null,null,"Note 6: If C14 sampling is carried out at the plant, the methodology set out in the embedded document entitled \"Renewable Energy Association Energy Content of Fuels - Description of Method\" embedded below can be used to calculate the biogenic percentage by net calorific value. Otherwise, data from waste sampling or BIOMA software can be used; or if none of these are available, an estimated figure with justification or a figure assumed on the basis of up-to-date industry data can be used. "]
[null,"Yearly average biogenic percentage of the waste by mass","%","52.47%%"]
[null,"If waste sampling undertaken, no. of samples used to ascertain average biogenic percentages above","Number",1]
[null,"Description of how biogenic percentage (by mass) has been calculated or estimated. \nSee Note 7","Waste feed analysis carried out annually (these figures are from the 2024 report). The % recorded is all wastes (recorded at 99.52%) minus the following non biogenic waste:-\nPlastic film 17.64%\nDense plastic 20.46%\nNote: Textiles 8.95% - This calculation assumed textiles are 100% biogenic.",null,null,"Note 7: Where available, data from waste sampling should be used; otherwise, an estimated figure with justification can be used, or a figure assumed on the basis of up-to-date industry data. "]
[]
[null,"Comments:"]
[null,"CO2 and N2O have come directly from the continuous emission monitoring system (CEMS) and are both QAL 2 calibrated with calibration functions in place. Biogenic CO2 comes from a single C14 testing process."]

{"sheet":"Residue Quality ","index":11,"n_rows":33,"n_cols":6,"rows_kept":33,"cut":false,"hidden":false,"merged":[[5,0,6,6],[10,0,11,1],[10,2,11,6],[16,0,17,1],[16,2,17,6],[12,0,13,1],[12,2,13,6],[14,0,15,1],[14,2,15,6],[8,0,8,6],[9,0,9,1],[9,2,9,6],[18,0,19,1],[18,2,19,6],[27,3,27,4],[23,2,24,2],[24,3,24,4],[24,5,24,6],[23,3,23,6],[22,0,22,6],[32,0,37,6],[28,3,28,4],[31,0,31,6],[23,0,24,1],[25,0,25,1],[26,0,26,1],[27,0,27,1],[28,0,28,1],[25,3,25,4],[26,3,26,4],[25,5,25,6],[26,5,26,6],[27,5,27,6],[28,5,28,6],[29,0,29,6]]}
[{"$f":"+'Cover Page'!$B$29","v":"Annual Performance Report 2024"},null,null,null,{"$f":"+'Cover Page'!$B$33","v":"Kent Enviropower Limited"}]
[]
["Residue Quality Monitoring Requirements"]
[]
["Summary of monitoring undertaken and compliance"]
["Waste Description:  Bottom Ash\nParameter to be measured :\nTOC, Metals (Cd, Tl, Hg, Pb, Cr, Cu, Mn, Ni, As, Co, V, Sb, Zn)  and  their  compounds  and  \nthe total   soluble fraction of these metals, dioxins/ furans and dioxin like PCB’s. Sampling \nand analysis as per Agency ash sampling protocol.\n\nFrequency:\nQuarterly (with  the exception of the total soluble fraction which shall   be   \nsampled and analysed  before the use of a new disposal or recycling route).\nHazard assessment undertaken twice a month (24 samples a year)"]
[]
[]
["Commentary on any specific events"]
["Date & Event",null,"Description"]
["NA",null,"NA"]
[]
[]
[]
[]
[]
[]
[]
[]
[]
[]
[]
["Residue Quality Monitoring Results"]
["Parameter (unit) ",null,"Limit*","Normal Operation "]
[null,null,null,"Bottom ash  ",null,"APC Residues"]
["Loss on Ignition (average %)",null,"<5%","NA*"]
["Total Organic Carbon (average %)",null,"<3%","<1%"]
["No. of Assessments Undertaken",null,"---","28**",null,4]
["No. of Hazardous Results",null,"---",0]
["* The permit will specify a limit of either 5% loss on ignition or 3% total organic carbon. If both are measured anyway, please enter the results here, even where the limit does not apply. "]
[]
["Comments :"]
["* The new permit variation BREF (BR4551IC version 012) no longer requires LOI to be recorded.\n** This equates to 24 IBA hazard assessments and 4 quarterly reports."]

{"sheet":"Water","index":12,"n_rows":32,"n_cols":15,"rows_kept":32,"cut":false,"hidden":false,"merged":[[29,0,29,2],[29,3,29,4],[30,0,30,2],[30,3,30,4],[31,0,31,2],[31,3,31,4],[26,0,26,2],[26,3,26,4],[27,0,27,2],[27,3,27,4],[28,0,28,2],[28,3,28,4],[5,0,6,8],[8,0,8,8],[9,0,9,1],[9,2,9,8],[17,0,17,8],[18,0,18,2],[18,3,18,4],[10,0,11,1],[10,2,11,8],[12,0,13,1],[12,2,13,8],[14,0,15,1],[14,2,15,8],[19,0,19,2],[19,3,19,4],[20,0,20,2],[20,3,20,4],[21,0,21,2],[21,3,21,4],[25,0,25,2],[25,3,25,4],[22,0,22,2],[22,3,22,4],[23,0,23,2],[23,3,23,4],[24,0,24,2],[24,3,24,4]]}
[{"$f":"+'Cover Page'!$B$29","v":"Annual Performance Report 2024"},null,null,null,{"$f":"+'Cover Page'!$B$33","v":"Kent Enviropower Limited"}]
[]
["Emissions to Water"]
[]
["Summary of monitoring undertaken and compliance"]
["Parameters for which reports shall be made, in accordance with conditions of the Consent to the Discharge of Trade Effluent issued by Southern Water, are listed below and are measured monthly. \n\nThese are not Environmental Permit limits but limits for disposal of effluent water discharged down sewage drains."]
[]
[]
["Commentary on any specific events"]
["Date & Event",null,"Description"]
["2024-02-01",null,"This sample point is problematic because it is very often dry.Unfortunately there is no other sampling point available on site."]
[]
[]
[]
[]
[]
[null,null,null,null,null,null,null,null,null,null,null,null,null,null,", "]
["Emissions to Water / Sewer"]
["Parameter",null,null,"Monitoring Frequency",null,"Limit","Target","Max.","Average"]
["Arsenic",null,null,"monthly",null,1,1,0.1,9.166666666666666E-2]
["COD shaken",null,null,"monthly",null,800,800,79,16.033333333333335]
["Chromium",null,null,"monthly",null,1,1,0.1,9.166666666666666E-2]
["Copper",null,null,"monthly",null,1,1,1,0.84166666666666667]
["Fluoride",null,null,"monthly",null,2,2,0.8,0.31741666666666674]
["Lead",null,null,"monthly",null,1,1,1,0.39166666666666666]
["Molybdenum",null,null,"monthly",null,1,1,0.3,0.12500000000000003]
["Nickel",null,null,"monthly",null,1,1,0.1,9.166666666666666E-2]
["Selenium",null,null,"monthly",null,1,1,0.1,9.166666666666666E-2]
["Suspended solids",null,null,"monthly",null,200,200,283,58.416666666666664]
["Sulphate",null,null,"monthly",null,500,500,169,76.751666666666665]
["Zinc",null,null,"monthly",null,3,3,0.2,9.9999999999999992E-2]
["pH",null,null,"monthly",null,null,null,10.5,7.6500000000000012]

{"sheet":"Air (periodic)","index":13,"n_rows":42,"n_cols":11,"rows_kept":42,"cut":false,"hidden":false,"merged":[[5,10,8,13],[9,10,11,13],[8,0,8,9],[5,0,6,9],[11,0,11,1],[12,0,12,1],[11,3,11,4],[12,3,12,4],[9,0,10,1],[9,5,9,9],[9,3,10,4],[9,2,10,2],[16,0,16,1],[17,0,17,1],[18,0,18,1],[13,0,13,1],[14,0,14,1],[15,0,15,1],[41,0,42,9],[25,0,25,1],[26,0,26,1],[22,0,22,1],[23,0,23,1],[39,0,39,1],[27,0,27,1],[28,0,28,1],[29,0,29,1],[30,0,30,1],[31,0,31,1],[32,0,32,1],[39,3,39,4],[29,3,29,4],[30,3,30,4],[38,3,38,4],[40,0,40,9],[19,0,19,1],[20,0,20,1],[21,0,21,1],[34,3,34,4],[35,3,35,4],[33,0,33,1],[34,0,34,1],[35,0,35,1],[38,0,38,1],[24,0,24,1],[32,3,32,4],[27,3,27,4],[33,3,33,4],[19,3,19,4],[20,3,20,4],[23,3,23,4],[24,3,24,4],[31,3,31,4],[25,3,25,4],[26,3,26,4],[28,3,28,4],[36,0,36,1],[37,0,37,1],[36,3,36,4],[37,3,37,4],[13,10,14,12],[15,10,16,10],[15,11,16,11],[15,12,16,12],[18,3,18,4],[13,3,13,4],[14,3,14,4],[15,3,15,4],[16,3,16,4],[17,3,17,4],[21,3,21,4],[22,3,22,4]]}
[{"$f":"+'Cover Page'!$B$29","v":"Annual Performance Report 2024"},null,null,null,{"$f":"+'Cover Page'!$B$33","v":"Kent Enviropower Limited"}]
[]
["Emissions to Air (periodically monitored)"]
[]
["Summary of monitoring undertaken, standards used and compliance",null,null,null,null,null,null,null,null,null,"Notes:"]
[null,null,null,null,null,null,null,null,null,null,"Template may require adjustment for any bespoke monitoring requirements of permit - please also check that all default ELV values, reference periods and the stated oxygen reference value match those for your plant, and edit if necessary!"]
[]
[]
["Results of emissions to air that are periodically monitored - oxygen reference 11% "]
["Substance",null,"Ref. Period","Emission Limit Value",null,"Average",null,null,null,null,"User to add additional tables as necessary, depending on whether quarterly or bi-annual reporting is required for the compliance year"]
[null,null,null,null,null,"A1","A2","A3","A4","A5"]
["Cadmium & Thallium",null,"Average of three consecutive\nmeasurements of at\nleast 30 minutes each","0.02mg/m3",null,1.2000000000000001E-3,1.0500000000000002E-3,1.15E-3]
["Heavy Metals",null,"Average of three consecutive\nmeasurements of at\nleast 30 minutes each","0.3 mg/m3",null,5.6500000000000002E-2,4.2999999999999997E-2,5.1000000000000004E-2]
["Mercury",null,"Average of three consecutive\nmeasurements of at\nleast 30 minutes each","0.02 mg/m3",null,4.8000000000000001E-4,7.9000000000000001E-4,7.7000000000000007E-4]
["Hydrogen Fluoride",null,"Average of three consecutive\nmeasurements of at\nleast 30 minutes each","1 mg/m3",null,0.04,4.1000000000000002E-2,0.04]
["Dioxins / furans (I-TEQ)6",null,"Over period between 6 and 8 hours","0.06 µg/m3",null,4.58E-2,7.6950000000000005E-2,9.1450000000000004E-2]
["Dioxins / furans (WHO-TEQ Humans / Mammals) 6",null,"Over period between 6 and 8 hours","None set µg/m3",null,4.7E-2,7.6649999999999996E-2,9.6250000000000002E-2]
["Dioxins / furans (WHO-TEQ Fish) 6",null,"Over period between 6 and 8 hours","None set µg/m3",null,3.4349999999999999E-2,6.0699999999999997E-2,0.12045]
["Dioxins / furans (WHO-TEQ Birds) 6",null,"Over period between 6 and 8 hours","None set µg/m3",null,4.2799999999999998E-2,7.8149999999999997E-2,9.4299999999999995E-2]
["Dioxin-like PCBs (WHO-TEQ Humans / Mammals)6",null,"Over period between 6 and 8 hours","None set µg/m3",null,2.1275000000000001E-3,7.7720000000000003E-3,4.2667999999999998E-2]
["Dioxin-like PCBs (WHO-TEQ Fish)6",null,"Over period between 6 and 8 hours","None set µg/m3",null,1.0899999999999999E-4,3.5300000000000002E-4,2.2079999999999999E-3]
["Dioxin-like PCBs (WHO-TEQ Birds)6",null,"Over period between 6 and 8 hours","None set µg/m3",null,4.6219999999999994E-3,1.27305E-2,9.5261000000000012E-2]
["Brominated Dioxins &\nFurans (NATO I-TEQ)",null,"Over period between 6 and 8 hours","None set µg/m4",null,5.7499999999999999E-4,4.0000000000000001E-3,2E-3]
["PAHs (DEFRA 16)",null,"Over period between 6 and 8 hours","None set µg/m3",null,0.36,0.34,0.36]
["Anthanthrene",null,"Over period between 6 and 8 hours","None set µg/m3",null,1.4E-3,1.5E-3,1.5E-3]
["Benzo{a}anthracene",null,"Over period between 6 and 8 hours","None set µg/m3",null,1.4E-3,1.5E-3,1.5E-3]
["Benzo[b]fluoranthene",null,"Over period between 6 and 8 hours","None set µg/m3",null,1.4E-3,1.5E-3,1.5E-3]
["Benzo[k]fluoranthene",null,"Over period between 6 and 8 hours","None set µg/m3",null,1.4E-3,1.5E-3,1.5E-3]
["Benzo[b]naph(2,1-d}thiophene",null,"Over period between 6 and 8 hours","None set µg/m3",null,1.4E-3,1.5E-3,1.5E-3]
["Benzo[c]phenanthrene",null,"Over period between 6 and 8 hours","None set µg/m3",null,1.4E-3,1.5E-3,1.5E-3]
["Benzo[ghi]perylene",null,"Over period between 6 and 8 hours","None set µg/m3",null,1.4E-3,1.5E-3,1.5E-3]
["Benzo[a]pyrene",null,"Over period between 6 and 8 hours","None set µg/m3",null,1.4E-3,1.5E-3,1.5E-3]
["Cholanthrene",null,"Over period between 6 and 8 hours","None set µg/m3",null,1.4E-3,1.5E-3,1.5E-3]
["Chrysene",null,"Over period between 6 and 8 hours","None set µg/m3",null,1.4E-3,1.5E-3,1.5E-3]
["Cyclopenta(cd)pyrene",null,"Over period between 6 and 8 hours","None set µg/m3",null,1.4E-3,1.5E-3,1.5E-3]
["Dibenzo[ah]anthracene",null,"Over period between 6 and 8 hours","None set µg/m3",null,1.4E-3,1.5E-3,1.5E-3]
["Dibenzo[ai]pyrene",null,"Over period between 6 and 8 hours","None set µg/m3",null,1.4E-3,1.5E-3,1.5E-3]
["Fluoranthene",null,"Over period between 6 and 8 hours","None set µg/m3",null,1.2E-2,1.2999999999999999E-2,1.4E-2]
["Indeno[1,2,3-cd]pyrene",null,"Over period between 6 and 8 hours","None set µg/m3",null,1.4E-3,1.5E-3,1.5E-3]
["Naphthalene",null,"Over period between 6 and 8 hours","None set µg/m3",null,0.33,0.31,0.32]
["Comments :"]
["Dioxins and furans on lines 2 anhd 3 have been problematic. The EA Dioxin protocal is currently being followed."]

{"sheet":"Air (CEMS)","index":14,"n_rows":28,"n_cols":14,"rows_kept":28,"cut":false,"hidden":false,"merged":[[14,13,15,13],[14,14,15,14],[14,15,15,15],[12,13,13,15],[25,0,25,12],[27,0,28,12],[13,0,14,0],[5,0,6,12],[7,0,8,12],[10,0,10,12],[11,0,12,0],[11,2,12,2],[11,1,12,1],[11,3,11,4],[11,5,11,6],[11,7,11,8],[11,9,11,10],[11,11,11,12]]}
[{"$f":"+'Cover Page'!$B$29","v":"Annual Performance Report 2024"},null,null,null,null,null,null,null,{"$f":"+'Cover Page'!$B$33","v":"Kent Enviropower Limited"}]
[]
["Emissions to Air (continuously monitored)"]
[null,null,null,null,null,null,null,null,null,null,null,null,null,"Notes:"]
["Summary of monitoring undertaken, standards used and compliance",null,null,null,null,null,null,null,null,null,null,null,null,"Template may require adjustment for any bespoke monitoring requirements of permit"]
[null,null,null,null,null,null,null,null,null,null,null,null,null,"Please check that all default ELV values match those for your plant and edit if necessary!"]
[null,null,null,null,null,null,null,null,null,null,null,null,null,"Report to 1 decimal place"]
[]
[]
[]
["Results of emissions to air that are continuously monitored (maximum and average values for each line) - oxygen reference 11%"]
["Substance","Reference Period","Emission Limit Value","A1",null,"A2",null,"A3",null,"A4",null,"A5"]
[null,null,null,"Max.","Avg.","Max.","Avg.","Max.","Avg.","Max.","Avg.","Max.","Avg."]
["Oxides of nitrogen","Daily mean","180 mg/m3 ",168.5753,128.11645454545453,167.11410000000001,128.07084999999998,165.63509999999999,98.704283333333322]
[null,"½ hourly mean","400 mg/m3 ",304.57089999999999,128.47422727272726,276.5127,128.57085000000004,336.9896,99.171008333333347]
["Particulates","Daily mean","5 mg/m3",4.3435090000000001,2.3609188181818181,4.7378400000000003,2.7630441666666665,5.2458099999999996,2.865744166666667]
[null,"½ hourly mean","30 mg/m3 ",9.8771599999999999,2.441259090909091,12.680910000000001,2.8270700000000004,19.336929999999999,3.1168300000000002]
["Total Organic Carbon ","Daily mean","10 mg/m3 ",1.1577550000000001,0.36329454545454543,7.469258,0.48295491666666662,6.0274919999999996,0.49755224999999997]
[null,"* ½ hourly mean","20 mg/m3 ",38.381546,0.3782326363636363,144.36436499999999,0.53958150000000005,162.64205899999999,0.53967133333333328]
["Hydrogen chloride ","Daily mean","8 mg/m3 ",7.6324199999999998,3.3657518181818187,7.8380799999999997,4.3088375000000001,7.8698399999999999,4.3088375000000001]
[null,"½ hourly mean","60 mg/m3 ",15.47636,3.3317918181818182,54.06427,4.2171958333333324,92.532529999999994,4.478019166666666]
["Sulphur dioxide","Daily mean","40 mg/m3 ",1.2650399999999999,0.13396818181818182,4.2753800000000002,0.82295666666666667,3.3064900000000002,0.4388716666666666]
[null,"½ hourly mean","200 mg/m3 ",59.722740000000002,0.13476272727272728,148.07516000000001,0.83811666666666673,615.23621000000003,0.47854833333333335]
["Carbon monoxide ","95%ile 10-min avg *","150 mg/m3 *",19.5564,"NA",60.338900000000002,"NA",57.715699999999998,"NA"]
[" Ammonia","Daily mean","10 mg/m3 ",0.57824600000000004,7.2734909090909086E-2,4.4532540000000003,0.22925291666666667,1.7241759999999999,0.19626950000000001]
["* = delete as appropriate, depending on whether your plant has half-hourly or 10-min CO ELVs\n"]
["Comments :"]
["* TOC is 97% of all half hour averages in a rolling year and this has been compliant for all periods."]

{"sheet":"HCl","index":15,"n_rows":79,"n_cols":17,"rows_kept":79,"cut":false,"hidden":false,"merged":[[12,16,15,18],[51,9,63,9],[66,9,78,9],[4,9,4,14],[4,1,4,3],[4,4,4,6],[48,0,51,6],[47,0,47,6],[6,9,18,9],[21,9,33,9],[36,9,48,9],[3,16,7,18],[9,16,11,18],[18,4,18,6]]}
[{"$f":"+'Cover Page'!$B$29","v":"Annual Performance Report 2024"},null,null,null,{"$f":"+'Cover Page'!$B$33","v":"Kent Enviropower Limited"}]
[]
["Monitoring of Hydrogen Chloride emissions",null,null,"Whole Installation",null,null,"See  Notes in Cell Q3",null,null,{"$f":"+A3","v":"Monitoring of Hydrogen Chloride emissions"},null,null,null,"Per Combustion Line",null,null,"Notes:"]
[null,null,null,null,null,null,null,null,null,null,null,null,null,null,null,null,"User to add logic to complete Whole installation, Table A5:G18. From the data in Per Combustion Line, Table J6:O79, subject to No. of lines installed"]
[{"$f":"+'Cover Page'!C39","v":2024},"1/2 Hourly Reference Periods",null,null,"Daily Reference Periods"]
["mg/Nm3","1/2 hourly HCl ELV","Monthly mean of half-hourly averages","Highest half- hourly average","Daily HCl ELV","Monthly mean of  daily averages","Highest daily average",null,null,{"$f":"+A5","v":2024},"mg/Nm3","Monthly mean of half-hourly averages","Highest half- hourly average","Monthly mean of  daily averages","Highest daily average"]
["Jan",60,{"$f":"AVERAGE(L7,L22,L37)","v":2.3451266666666668},{"$f":"AVERAGE(M7,M22,M37)","v":6.0402066666666672},8,{"$f":"AVERAGE(N7,N22,N37)","v":2.4445866666666665},{"$f":"AVERAGE(O7,O22,O37)","v":4.7516933333333329},null,null,"A1","Jan",1.36876,4.37127,1.4539500000000001,3.60066]
["Feb",60,{"$f":"AVERAGE(L8,L23,L38)","v":2.93825},{"$f":"AVERAGE(M8,M23,M38)","v":10.268106666666668},8,{"$f":"AVERAGE(N8,N23,N38)","v":2.9151466666666668},{"$f":"AVERAGE(O8,O23,O38)","v":4.7344866666666663},null,null,null,"Feb",1.7524900000000001,11.08071,1.742,2.617]
["Mar",60,3.1230799999999999,38.671166666666664,8,3.097056666666667,4.186446666666666,null,null,null,"Mar",1.73539,10.941409999999999,1.7273499999999999,2.8307000000000002,null,"Whole Installation table A5:G18:"]
["Apr",60,4.7105600000000001,28.626179999999994,8,4.7392566666666669,6.3054200000000007,null,null,null,"Apr",3.9965600000000001,15.47636,3.97899,5.6241399999999997,null,"Mean: for 1/2 hourly and daily periods calculate mean of values across all operational combustion lines for the month"]
["May",60,4.2122766666666669,17.991993333333333,8,4.3672800000000001,5.3515799999999993,null,null,null,"May",3.0630600000000001,7.4285699999999997,3.1508600000000002,4.8027899999999999]
["Jun",60,3.3056800000000002,9.0131433333333337,8,3.374943333333333,4.0305600000000004,null,null,null,"Jun",2.0205600000000001,5.9229700000000003,2.1366299999999998,2.3485200000000002]
["Jul",60,4.1247199999999999,9.6327066666666674,8,4.1648666666666658,5.6716066666666665,null,null,null,"Jul",3.68065,8.5180600000000002,3.6244900000000002,5.9026199999999998,null,"Maximum: for 1/2 hourly and daily periods use the highest value across all operational combustion lines for the month"]
["Aug",60,3.5667166666666668,17.102599999999999,8,3.7411533333333331,5.4003733333333335,null,null,null,"Aug",2.3868299999999998,9.5685000000000002,2.52521,4.8978900000000003]
["Sep",60,5.2311466666666666,16.395706666666666,8,5.2607633333333332,6.3082733333333332,null,null,null,"Sep",5.0301900000000002,11.818960000000001,5.0110000000000001,5.9609800000000002]
["Oct",60,2.6049799999999999,7.242185000000001,8,2.7214700000000001,4.9121249999999996,null,null,null,"Oct","-","-","-","-"]
["Nov",60,5.4769466666666666,13.25714,8,5.343303333333334,6.5936033333333341,null,null,null,"Nov",5.5896100000000004,10.499000000000001,5.5930900000000001,7.1599000000000004]
["Dec",60,6.2262733333333342,35.340863333333338,8,6.1476299999999995,7.7801133333333325,null,null,null,"Dec",6.0256100000000004,14.93103,6.0796999999999999,7.6324199999999998]
[null,null,null,null,null,null,null,null,null,null,"Annual",{"$f":"AVERAGE(L7:L18)","v":3.3317918181818182},{"$f":"MAX(M7:M18)","v":15.47636},{"$f":"AVERAGE(N7:N18)","v":3.3657518181818187},{"$f":"MAX(O7:O18)","v":7.6324199999999998}]
[]
[null,null,null,null,null,null,null,null,null,{"$f":"+A5","v":2024},"mg/Nm3","Monthly mean of half-hourly averages","Highest half- hourly average","Monthly mean of  daily averages","Highest daily average"]
[null,null,null,null,null,null,null,null,null,"A2","Jan",3.0190700000000001,7.4040100000000004,3.1366499999999999,5.1591899999999997]
[null,null,null,null,null,null,null,null,null,null,"Feb",3.7514699999999999,9.9943100000000005,3.7130800000000002,5.6190600000000002]
[null,null,null,null,null,null,null,null,null,null,"Mar",4.5072099999999997,12.53956,4.6190100000000003,5.4931599999999996]
[null,null,null,null,null,null,null,null,null,null,"Apr",5.2232500000000002,54.06427,5.3115899999999998,7.5324]
[null,null,null,null,null,null,null,null,null,null,"May",4.8471700000000002,23.42557,5.0354099999999997,5.6406700000000001]
[null,null,null,null,null,null,null,null,null,null,"Jun",4.2430399999999997,11.85838,4.3062899999999997,5.1490099999999996]
[null,null,null,null,null,null,null,null,null,null,"Jul",3.7303500000000001,9.6102600000000002,3.9150299999999998,5.3202999999999996]
[null,null,null,null,null,null,null,null,null,null,"Aug",3.41994,31.467040000000001,3.7197900000000002,5.6203500000000002]
[null,null,null,null,null,null,null,null,null,null,"Sep",5.03789,19.38111,5.1313599999999999,5.8397699999999997]
[null,null,null,null,null,null,null,null,null,null,"Oct",1.6287100000000001,8.2288200000000007,1.74769,4.4468800000000002]
[null,null,null,null,null,null,null,null,null,null,"Nov",5.0957999999999997,16.537179999999999,4.9574400000000001,6.0579499999999999]
[null,null,null,null,null,null,null,null,null,null,"Dec",6.1024500000000002,16.821660000000001,6.1127099999999999,7.8380799999999997]
[null,null,null,null,null,null,null,null,null,null,"Annual",{"$f":"AVERAGE(L22:L33)","v":4.2171958333333324},{"$f":"MAX(M22:M33)","v":54.06427},{"$f":"AVERAGE(N22:N33)","v":4.3088375000000001},{"$f":"MAX(O22:O33)","v":7.8380799999999997}]
[]
[null,null,null,null,null,null,null,null,null,{"$f":"+A5","v":2024},"mg/Nm3","Monthly mean of half-hourly averages","Highest half- hourly average","Monthly mean of  daily averages","Highest daily average"]
[null,null,null,null,null,null,null,null,null,"A3","Jan",2.6475499999999998,6.3453400000000002,2.74316,5.4952300000000003]
[null,null,null,null,null,null,null,null,null,null,"Feb",3.3107899999999999,9.7293000000000003,3.2903600000000002,5.9673999999999996]
[null,null,null,null,null,null,null,null,null,null,"Mar",3.1266400000000001,92.532529999999994,2.9448099999999999,4.2354799999999999]
[null,null,null,null,null,null,null,null,null,null,"Apr",4.9118700000000004,16.337910000000001,4.9271900000000004,5.7597199999999997]
[null,null,null,null,null,null,null,null,null,null,"May",4.7266000000000004,23.121839999999999,4.9155699999999998,5.6112799999999998]
[null,null,null,null,null,null,null,null,null,null,"Jun",3.6534399999999998,9.2580799999999996,3.6819099999999998,4.59415]
[null,null,null,null,null,null,null,null,null,null,"Jul",4.9631600000000002,10.7698,4.9550799999999997,5.7919]
[null,null,null,null,null,null,null,null,null,null,"Aug",4.8933799999999996,10.272259999999999,4.9784600000000001,5.6828799999999999]
[null,null,null,null,null,null,null,null,null,null,"Sep",5.6253599999999997,17.98705,5.6399299999999997,7.1240699999999997]
[null,null,null,null,null,null,null,null,null,null,"Oct",3.5812499999999998,6.2555500000000004,3.6952500000000001,5.37737]
[null,null,null,null,null,null,null,null,null,null,"Nov",5.7454299999999998,12.735239999999999,5.4793799999999999,6.5629600000000003]
["Comments :",null,null,null,null,null,null,null,null,null,"Dec",6.5507600000000004,74.269900000000007,6.2504799999999996,7.8698399999999999]
["A1 (line 1) had an outage for a complete month in October (hence no data available)",null,null,null,null,null,null,null,null,null,"Annual",{"$f":"AVERAGE(L37:L48)","v":4.478019166666666},{"$f":"MAX(M37:M48)","v":92.532529999999994},{"$f":"AVERAGE(N37:N48)","v":4.4584649999999995},{"$f":"MAX(O37:O48)","v":7.8698399999999999}]
[]
[null,null,null,null,null,null,null,null,null,{"$f":"+A5","v":2024},"mg/Nm3","Monthly mean of half-hourly averages","Highest half- hourly average","Monthly mean of  daily averages","Highest daily average"]
[null,null,null,null,null,null,null,null,null,"A4","Jan"]
[null,null,null,null,null,null,null,null,null,null,"Feb"]
[null,null,null,null,null,null,null,null,null,null,"Mar"]
[null,null,null,null,null,null,null,null,null,null,"Apr"]
[null,null,null,null,null,null,null,null,null,null,"May"]
[null,null,null,null,null,null,null,null,null,null,"Jun"]
[null,null,null,null,null,null,null,null,null,null,"Jul"]
[null,null,null,null,null,null,null,null,null,null,"Aug"]
[null,null,null,null,null,null,null,null,null,null,"Sep"]
[null,null,null,null,null,null,null,null,null,null,"Oct"]
[null,null,null,null,null,null,null,null,null,null,"Nov"]
[null,null,null,null,null,null,null,null,null,null,"Dec"]
[null,null,null,null,null,null,null,null,null,null,"Annual",{"$f":"AVERAGE(L52:L63)","v":{"$error":"#DIV/0!"}},{"$f":"MAX(M52:M63)","v":0},{"$f":"AVERAGE(N52:N63)","v":{"$error":"#DIV/0!"}},{"$f":"MAX(O52:O63)","v":0}]
[]
[null,null,null,null,null,null,null,null,null,{"$f":"+A5","v":2024},"mg/Nm3","Monthly mean of half-hourly averages","Highest half- hourly average","Monthly mean of  daily averages","Highest daily average"]
[null,null,null,null,null,null,null,null,null,"A5","Jan"]
[null,null,null,null,null,null,null,null,null,null,"Feb"]
[null,null,null,null,null,null,null,null,null,null,"Mar"]
[null,null,null,null,null,null,null,null,null,null,"Apr"]
[null,null,null,null,null,null,null,null,null,null,"May"]
[null,null,null,null,null,null,null,null,null,null,"Jun"]
[null,null,null,null,null,null,null,null,null,null,"Jul"]
[null,null,null,null,null,null,null,null,null,null,"Aug"]
[null,null,null,null,null,null,null,null,null,null,"Sep"]
[null,null,null,null,null,null,null,null,null,null,"Oct"]
[null,null,null,null,null,null,null,null,null,null,"Nov"]
[null,null,null,null,null,null,null,null,null,null,"Dec"]
[null,null,null,null,null,null,null,null,null,null,"Annual",{"$f":"AVERAGE(L67:L78)","v":{"$error":"#DIV/0!"}},{"$f":"MAX(M67:M78)","v":0},{"$f":"AVERAGE(N67:N78)","v":{"$error":"#DIV/0!"}},{"$f":"MAX(O67:O78)","v":0}]

{"sheet":"SO2","index":16,"n_rows":79,"n_cols":17,"rows_kept":79,"cut":false,"hidden":false,"merged":[[3,16,7,18],[9,16,11,18],[12,16,15,18],[66,9,78,9],[4,1,4,3],[4,4,4,6],[4,9,4,14],[6,9,18,9],[21,9,33,9],[36,9,48,9],[47,0,47,6],[48,0,51,6],[51,9,63,9],[18,4,18,6]]}
[{"$f":"+'Cover Page'!$B$29","v":"Annual Performance Report 2024"},null,null,null,{"$f":"+'Cover Page'!$B$33","v":"Kent Enviropower Limited"}]
[]
["Monitoring of Sulphur dioxide emissions",null,null,"Whole Installation",null,null,"See  Notes in Cell Q3",null,null,{"$f":"+A3","v":"Monitoring of Sulphur dioxide emissions"},null,null,null,"Per Combustion Line",null,null,"Notes:"]
[null,null,null,null,null,null,null,null,null,null,null,null,null,null,null,null,"User to add logic to complete Whole installation, Table A5:G18. From the data in Per Combustion Line, Table J6:O79, subject to No. of lines installed"]
[{"$f":"+'Cover Page'!C39","v":2024},"1/2 Hourly Reference Periods",null,null,"Daily Reference Periods"]
["mg/Nm3","1/2 hourly SO2 ELV","Monthly mean of half-hourly averages","Highest half- hourly average","Daily SO2 ELV","Monthly mean of  daily averages","Highest daily average",null,null,{"$f":"+A5","v":2024},"mg/Nm3","Monthly mean of half-hourly averages","Highest half- hourly average","Monthly mean of  daily averages","Highest daily average"]
["Jan",200,{"$f":"AVERAGE(L7,L22,L37)","v":0.20426},{"$f":"AVERAGE(M7,M22,M37)","v":13.564846666666668},40,{"$f":"AVERAGE(N7,N22,N37)","v":0.20691333333333331},{"$f":"AVERAGE(O7,O22,O37)","v":0.65777666666666668},null,null,"A1","Jan",2.452E-2,1.4728600000000001,2.3900000000000001E-2,0.22231000000000001]
["Feb",200,{"$f":"AVERAGE(L8,L23,L38)","v":0.33718999999999993},{"$f":"AVERAGE(M8,M23,M38)","v":17.748713333333335},40,{"$f":"AVERAGE(N8,N23,N38)","v":0.31715333333333334},{"$f":"AVERAGE(O8,O23,O38)","v":1.1655966666666666},null,null,null,"Feb",9.1389999999999999E-2,11.72373,8.899E-2,0.28881000000000001]
["Mar",200,0.62695666666666661,230.42708000000002,40,0.3854933333333333,1.0137400000000001,null,null,null,"Mar",0.32741999999999999,59.722740000000002,0.29871999999999999,1.2650399999999999,null,"Whole Installation table A5:G18:"]
["Apr",200,0.44198000000000004,38.226453333333332,40,0.44829999999999998,1.7335466666666666,null,null,null,"Apr",8.8230000000000003E-2,6.4970400000000001,8.992E-2,0.29192000000000001,null,"Mean: for 1/2 hourly and daily periods calculate mean of values across all operational combustion lines for the month"]
["May",200,0.36983333333333329,25.85513666666667,40,0.39257999999999998,1.2711766666666666,null,null,null,"May",0.12822,3.6876500000000001,0.13882,0.60038999999999998]
["Jun",200,0.57395333333333332,42.221269999999997,40,0.57588000000000006,1.4277566666666666,null,null,null,"Jun",9.9159999999999998E-2,5.4864499999999996,0.10866000000000001,0.39354]
["Jul",200,0.7281266666666667,30.140036666666663,40,0.73142666666666667,1.5746766666666667,null,null,null,"Jul",0.24060000000000001,19.086459999999999,0.23791999999999999,0.74961999999999995,null,"Maximum: for 1/2 hourly and daily periods use the highest value across all operational combustion lines for the month"]
["Aug",200,0.66274,64.201696666666678,40,0.61753000000000002,1.1814933333333333,null,null,null,"Aug",0.15617,31.979220000000002,0.14025000000000001,0.69372]
["Sep",200,0.51658333333333328,23.179586666666665,40,0.52749999999999997,1.0187466666666667,null,null,null,"Sep",0.14937,20.768219999999999,0.16968,0.69496999999999998]
["Oct",200,0.88608500000000001,21.852715,40,0.86147499999999999,1.3976199999999999,null,null,null,"Oct","-","-","-","-"]
["Nov",200,0.42802666666666672,39.09182666666667,40,0.48375666666666667,2.2526600000000001,null,null,null,"Nov",0.13733999999999999,16.125019999999999,0.13708000000000001,0.59040000000000004]
["Dec",200,0.28041666666666665,11.348273333333333,40,0.27767999999999998,0.69142999999999999,null,null,null,"Dec",3.9969999999999999E-2,3.1151200000000001,3.9710000000000002E-2,0.47395999999999999]
[null,null,null,null,null,null,null,null,null,null,"Annual",{"$f":"AVERAGE(L7:L18)","v":0.13476272727272728},{"$f":"MAX(M7:M18)","v":59.722740000000002},{"$f":"AVERAGE(N7:N18)","v":0.13396818181818182},{"$f":"MAX(O7:O18)","v":1.2650399999999999}]
[]
[null,null,null,null,null,null,null,null,null,{"$f":"+A5","v":2024},"mg/Nm3","Monthly mean of half-hourly averages","Highest half- hourly average","Monthly mean of  daily averages","Highest daily average"]
[null,null,null,null,null,null,null,null,null,"A2","Jan",0.41647000000000001,14.330880000000001,0.4244,0.66783999999999999]
[null,null,null,null,null,null,null,null,null,null,"Feb",0.67183999999999999,29.732230000000001,0.61534,2.1338499999999998]
[null,null,null,null,null,null,null,null,null,null,"Mar",0.63619999999999999,16.322289999999999,0.55123,0.63153000000000004]
[null,null,null,null,null,null,null,null,null,null,"Apr",1.0128900000000001,96.918419999999998,1.0239400000000001,4.2753800000000002]
[null,null,null,null,null,null,null,null,null,null,"May",0.79093000000000002,63.195210000000003,0.85836000000000001,2.7758500000000002]
[null,null,null,null,null,null,null,null,null,null,"Jun",1.1480900000000001,111.20571,1.14554,2.8248799999999998]
[null,null,null,null,null,null,null,null,null,null,"Jul",1.38541,57.777299999999997,1.37188,2.83562]
[null,null,null,null,null,null,null,null,null,null,"Aug",1.07626,148.07516000000001,0.92927000000000004,1.6285499999999999]
[null,null,null,null,null,null,null,null,null,null,"Sep",0.78154999999999997,35.268259999999998,0.79479,1.2893600000000001]
[null,null,null,null,null,null,null,null,null,null,"Oct",0.99075999999999997,30.330649999999999,0.98429,1.6878]
[null,null,null,null,null,null,null,null,null,null,"Nov",0.62560000000000004,68.059730000000002,0.66952999999999996,2.8610899999999999]
[null,null,null,null,null,null,null,null,null,null,"Dec",0.52139999999999997,12.63353,0.50690999999999997,0.77368000000000003]
[null,null,null,null,null,null,null,null,null,null,"Annual",{"$f":"AVERAGE(L22:L33)","v":0.83811666666666673},{"$f":"MAX(M22:M33)","v":148.07516000000001},{"$f":"AVERAGE(N22:N33)","v":0.82295666666666667},{"$f":"MAX(O22:O33)","v":4.2753800000000002}]
[]
[null,null,null,null,null,null,null,null,null,{"$f":"+A5","v":2024},"mg/Nm3","Monthly mean of half-hourly averages","Highest half- hourly average","Monthly mean of  daily averages","Highest daily average"]
[null,null,null,null,null,null,null,null,null,"A3","Jan",0.17179,24.890799999999999,0.17244000000000001,1.08318]
[null,null,null,null,null,null,null,null,null,null,"Feb",0.24834000000000001,11.790179999999999,0.24712999999999999,1.07413]
[null,null,null,null,null,null,null,null,null,null,"Mar",0.91725000000000001,615.23621000000003,0.30653000000000002,1.1446499999999999]
[null,null,null,null,null,null,null,null,null,null,"Apr",0.22481999999999999,11.2639,0.23104,0.63334000000000001]
[null,null,null,null,null,null,null,null,null,null,"May",0.19034999999999999,10.682550000000001,0.18056,0.43729000000000001]
[null,null,null,null,null,null,null,null,null,null,"Jun",0.47460999999999998,9.9716500000000003,0.47344000000000003,1.0648500000000001]
[null,null,null,null,null,null,null,null,null,null,"Jul",0.55837000000000003,13.55635,0.58448,1.13879]
[null,null,null,null,null,null,null,null,null,null,"Aug",0.75578999999999996,12.55071,0.78307000000000004,1.22221]
[null,null,null,null,null,null,null,null,null,null,"Sep",0.61882999999999999,13.502280000000001,0.61802999999999997,1.0719099999999999]
[null,null,null,null,null,null,null,null,null,null,"Oct",0.78141000000000005,13.374779999999999,0.73865999999999998,1.10744]
[null,null,null,null,null,null,null,null,null,null,"Nov",0.52114000000000005,33.090730000000001,0.64466000000000001,3.3064900000000002]
["Comments :",null,null,null,null,null,null,null,null,null,"Dec",0.27988000000000002,18.29617,0.28642000000000001,0.82665]
["A1 (line 1) had an outage for a complete month in October (hence no data available)",null,null,null,null,null,null,null,null,null,"Annual",{"$f":"AVERAGE(L37:L48)","v":0.47854833333333335},{"$f":"MAX(M37:M48)","v":615.23621000000003},{"$f":"AVERAGE(N37:N48)","v":0.4388716666666666},{"$f":"MAX(O37:O48)","v":3.3064900000000002}]
[]
[null,null,null,null,null,null,null,null,null,{"$f":"+A5","v":2024},"mg/Nm3","Monthly mean of half-hourly averages","Highest half- hourly average","Monthly mean of  daily averages","Highest daily average"]
[null,null,null,null,null,null,null,null,null,"A4","Jan"]
[null,null,null,null,null,null,null,null,null,null,"Feb"]
[null,null,null,null,null,null,null,null,null,null,"Mar"]
[null,null,null,null,null,null,null,null,null,null,"Apr"]
[null,null,null,null,null,null,null,null,null,null,"May"]
[null,null,null,null,null,null,null,null,null,null,"Jun"]
[null,null,null,null,null,null,null,null,null,null,"Jul"]
[null,null,null,null,null,null,null,null,null,null,"Aug"]
[null,null,null,null,null,null,null,null,null,null,"Sep"]
[null,null,null,null,null,null,null,null,null,null,"Oct"]
[null,null,null,null,null,null,null,null,null,null,"Nov"]
[null,null,null,null,null,null,null,null,null,null,"Dec"]
[null,null,null,null,null,null,null,null,null,null,"Annual",{"$f":"AVERAGE(L52:L63)","v":{"$error":"#DIV/0!"}},{"$f":"MAX(M52:M63)","v":0},{"$f":"AVERAGE(N52:N63)","v":{"$error":"#DIV/0!"}},{"$f":"MAX(O52:O63)","v":0}]
[]
[null,null,null,null,null,null,null,null,null,{"$f":"+A5","v":2024},"mg/Nm3","Monthly mean of half-hourly averages","Highest half- hourly average","Monthly mean of  daily averages","Highest daily average"]
[null,null,null,null,null,null,null,null,null,"A5","Jan"]
[null,null,null,null,null,null,null,null,null,null,"Feb"]
[null,null,null,null,null,null,null,null,null,null,"Mar"]
[null,null,null,null,null,null,null,null,null,null,"Apr"]
[null,null,null,null,null,null,null,null,null,null,"May"]
[null,null,null,null,null,null,null,null,null,null,"Jun"]
[null,null,null,null,null,null,null,null,null,null,"Jul"]
[null,null,null,null,null,null,null,null,null,null,"Aug"]
[null,null,null,null,null,null,null,null,null,null,"Sep"]
[null,null,null,null,null,null,null,null,null,null,"Oct"]
[null,null,null,null,null,null,null,null,null,null,"Nov"]
[null,null,null,null,null,null,null,null,null,null,"Dec"]
[null,null,null,null,null,null,null,null,null,null,"Annual",{"$f":"AVERAGE(L67:L78)","v":{"$error":"#DIV/0!"}},{"$f":"MAX(M67:M78)","v":0},{"$f":"AVERAGE(N67:N78)","v":{"$error":"#DIV/0!"}},{"$f":"MAX(O67:O78)","v":0}]

{"sheet":"NOx","index":17,"n_rows":79,"n_cols":17,"rows_kept":79,"cut":false,"hidden":false,"merged":[[3,16,7,18],[9,16,11,18],[12,16,15,18],[66,9,78,9],[4,1,4,3],[4,4,4,6],[4,9,4,14],[6,9,18,9],[21,9,33,9],[36,9,48,9],[47,0,47,6],[48,0,51,6],[51,9,63,9],[18,4,18,6]]}
[{"$f":"+'Cover Page'!$B$29","v":"Annual Performance Report 2024"},null,null,null,{"$f":"+'Cover Page'!$B$33","v":"Kent Enviropower Limited"}]
[]
["Monitoring of Oxides of Nitrogen emissions",null,null,"Whole Installation",null,null,"See  Notes in Cell Q3",null,null,{"$f":"+A3","v":"Monitoring of Oxides of Nitrogen emissions"},null,null,null,"Per Combustion Line",null,null,"Notes:"]
[null,null,null,null,null,null,null,null,null,null,null,null,null,null,null,null,"User to add logic to complete Whole installation, Table A5:G18. From the data in Per Combustion Line, Table J6:O79, subject to No. of lines installed"]
[{"$f":"+'Cover Page'!C39","v":2024},"1/2 Hourly Reference Periods",null,null,"Daily Reference Periods"]
["mg/Nm3","1/2 hourly NOx ELV","Monthly mean of half-hourly averages","Highest half- hourly average","Daily NOx ELV","Monthly mean of  daily averages","Highest daily average",null,null,{"$f":"+A5","v":2024},"mg/Nm3","Monthly mean of half-hourly averages","Highest half- hourly average","Monthly mean of  daily averages","Highest daily average"]
["Jan",400,{"$f":"AVERAGE(L7,L22,L37)","v":121.1134},{"$f":"AVERAGE(M7,M22,M37)","v":233.26459999999997},180,{"$f":"AVERAGE(N7,N22,N37)","v":121.29053333333333},{"$f":"AVERAGE(O7,O22,O37)","v":155.46119999999999},null,null,"A1","Jan",130.4282,240.45849999999999,129.92060000000001,145.8381]
["Feb",400,{"$f":"AVERAGE(L8,L23,L38)","v":123.277},{"$f":"AVERAGE(M8,M23,M38)","v":218.81653333333335},180,{"$f":"AVERAGE(N8,N23,N38)","v":122.61933333333333},{"$f":"AVERAGE(O8,O23,O38)","v":141.00916666666669},null,null,null,"Feb",149.57839999999999,241.7852,149.00190000000001,162.55109999999999]
["Mar",400,115.14523333333334,275.25389999999999,180,112.91969999999999,130.04350000000002,null,null,null,"Mar",138.86109999999999,304.57089999999999,139.60400000000001,164.27600000000001,null,"Whole Installation table A5:G18:"]
["Apr",400,121.88263333333333,188.34786666666665,180,121.97250000000001,142.6491,null,null,null,"Apr",145.22110000000001,222.4665,144.5745,168.5753,null,"Mean: for 1/2 hourly and daily periods calculate mean of values across all operational combustion lines for the month"]
["May",400,117.34733333333332,254.6549,180,116.0099,145.78476666666668,null,null,null,"May",119.5099,167.5617,120.7533,136.5147]
["Jun",400,116.8104,229.9091,180,116.11913333333332,134.51833333333335,null,null,null,"Jun",132.08090000000001,284.89299999999997,129.2242,138.768]
["Jul",400,113.36586666666666,198.47873333333334,180,113.46679999999999,154.2159,null,null,null,"Jul",126.7679,199.8287,126.6005,160.1755,null,"Maximum: for 1/2 hourly and daily periods use the highest value across all operational combustion lines for the month"]
["Aug",400,121.39269999999999,210.02626666666666,180,120.69683333333334,146.84836666666666,null,null,null,"Aug",129.3339,240.0976,128.41229999999999,160.2509]
["Sep",400,115.70980000000002,171.07159999999999,180,116.3374,138.3717,null,null,null,"Sep",121.90089999999999,172.15469999999999,121.8584,136.0866]
["Oct",400,109.43369999999999,191.6815,180,109.69800000000001,130.54464999999999,null,null,null,"Oct","-","-","-","-"]
["Nov",400,119.0813,200.79013333333333,180,118.62293333333332,143.89490000000001,null,null,null,"Nov",107.2303,172.60339999999999,107.18340000000001,137.3768]
["Dec",400,123.95813333333332,222.26679999999999,180,123.67379999999999,159.43936666666664,null,null,null,"Dec",112.3039,244.79349999999999,112.14790000000001,147.66560000000001]
[null,null,null,null,null,null,null,null,null,null,"Annual",{"$f":"AVERAGE(L7:L18)","v":128.47422727272726},{"$f":"MAX(M7:M18)","v":304.57089999999999},{"$f":"AVERAGE(N7:N18)","v":128.11645454545453},{"$f":"MAX(O7:O18)","v":168.5753}]
[]
[null,null,null,null,null,null,null,null,null,{"$f":"+A5","v":2024},"mg/Nm3","Monthly mean of half-hourly averages","Highest half- hourly average","Monthly mean of  daily averages","Highest daily average"]
[null,null,null,null,null,null,null,null,null,"A2","Jan",143.48410000000001,190.87180000000001,144.2818,163.339]
[null,null,null,null,null,null,null,null,null,null,"Feb",121.77800000000001,229.27080000000001,122.1,139.48689999999999]
[null,null,null,null,null,null,null,null,null,null,"Mar",117.22669999999999,184.2012,112.0825,113.1367]
[null,null,null,null,null,null,null,null,null,null,"Apr",129.08029999999999,190.0171,129.54769999999999,156.5703]
[null,null,null,null,null,null,null,null,null,null,"May",120.3554,276.5127,118.08369999999999,146.12610000000001]
[null,null,null,null,null,null,null,null,null,null,"Jun",126.0215,248.72200000000001,126.6515,155.96799999999999]
[null,null,null,null,null,null,null,null,null,null,"Jul",124.5335,215.23400000000001,124.30410000000001,163.89599999999999]
[null,null,null,null,null,null,null,null,null,null,"Aug",134.6482,236.0119,132.81270000000001,163.54140000000001]
[null,null,null,null,null,null,null,null,null,null,"Sep",129.50280000000001,195.59110000000001,131.37379999999999,167.11410000000001]
[null,null,null,null,null,null,null,null,null,null,"Oct",122.62569999999999,210.70689999999999,122.91249999999999,142.33629999999999]
[null,null,null,null,null,null,null,null,null,null,"Nov",137.6148,234.0727,137.66499999999999,158.12450000000001]
[null,null,null,null,null,null,null,null,null,null,"Dec",135.97919999999999,211.71600000000001,135.03489999999999,165.01740000000001]
[null,null,null,null,null,null,null,null,null,null,"Annual",{"$f":"AVERAGE(L22:L33)","v":128.57085000000004},{"$f":"MAX(M22:M33)","v":276.5127},{"$f":"AVERAGE(N22:N33)","v":128.07084999999998},{"$f":"MAX(O22:O33)","v":167.11410000000001}]
[]
[null,null,null,null,null,null,null,null,null,{"$f":"+A5","v":2024},"mg/Nm3","Monthly mean of half-hourly averages","Highest half- hourly average","Monthly mean of  daily averages","Highest daily average"]
[null,null,null,null,null,null,null,null,null,"A3","Jan",89.427899999999994,268.46350000000001,89.669200000000004,157.20650000000001]
[null,null,null,null,null,null,null,null,null,null,"Feb",98.474599999999995,185.39359999999999,96.756100000000004,120.98950000000001]
[null,null,null,null,null,null,null,null,null,null,"Mar",89.347899999999996,336.9896,87.072599999999994,112.7178]
[null,null,null,null,null,null,null,null,null,null,"Apr",91.346500000000006,152.56,91.795299999999997,102.8017]
[null,null,null,null,null,null,null,null,null,null,"May",112.1767,319.89030000000002,109.1927,154.71350000000001]
[null,null,null,null,null,null,null,null,null,null,"Jun",92.328800000000001,156.1123,92.481700000000004,108.819]
[null,null,null,null,null,null,null,null,null,null,"Jul",88.796199999999999,180.37350000000001,89.495800000000003,138.5762]
[null,null,null,null,null,null,null,null,null,null,"Aug",100.196,153.9693,100.8655,116.75279999999999]
[null,null,null,null,null,null,null,null,null,null,"Sep",95.725700000000003,145.46899999999999,95.78,111.9144]
[null,null,null,null,null,null,null,null,null,null,"Oct",96.241699999999994,172.65610000000001,96.483500000000006,118.753]
[null,null,null,null,null,null,null,null,null,null,"Nov",112.39879999999999,195.6943,111.0204,136.18340000000001]
["Comments :",null,null,null,null,null,null,null,null,null,"Dec",123.5913,210.29089999999999,123.8386,165.63509999999999]
["A1 (line 1) had an outage for a complete month in October (hence no data available)",null,null,null,null,null,null,null,null,null,"Annual",{"$f":"AVERAGE(L37:L48)","v":99.171008333333347},{"$f":"MAX(M37:M48)","v":336.9896},{"$f":"AVERAGE(N37:N48)","v":98.704283333333322},{"$f":"MAX(O37:O48)","v":165.63509999999999}]
[]
[null,null,null,null,null,null,null,null,null,{"$f":"+A5","v":2024},"mg/Nm3","Monthly mean of half-hourly averages","Highest half- hourly average","Monthly mean of  daily averages","Highest daily average"]
[null,null,null,null,null,null,null,null,null,"A4","Jan"]
[null,null,null,null,null,null,null,null,null,null,"Feb"]
[null,null,null,null,null,null,null,null,null,null,"Mar"]
[null,null,null,null,null,null,null,null,null,null,"Apr"]
[null,null,null,null,null,null,null,null,null,null,"May"]
[null,null,null,null,null,null,null,null,null,null,"Jun"]
[null,null,null,null,null,null,null,null,null,null,"Jul"]
[null,null,null,null,null,null,null,null,null,null,"Aug"]
[null,null,null,null,null,null,null,null,null,null,"Sep"]
[null,null,null,null,null,null,null,null,null,null,"Oct"]
[null,null,null,null,null,null,null,null,null,null,"Nov"]
[null,null,null,null,null,null,null,null,null,null,"Dec"]
[null,null,null,null,null,null,null,null,null,null,"Annual",{"$f":"AVERAGE(L52:L63)","v":{"$error":"#DIV/0!"}},{"$f":"MAX(M52:M63)","v":0},{"$f":"AVERAGE(N52:N63)","v":{"$error":"#DIV/0!"}},{"$f":"MAX(O52:O63)","v":0}]
[]
[null,null,null,null,null,null,null,null,null,{"$f":"+A5","v":2024},"mg/Nm3","Monthly mean of half-hourly averages","Highest half- hourly average","Monthly mean of  daily averages","Highest daily average"]
[null,null,null,null,null,null,null,null,null,"A5","Jan"]
[null,null,null,null,null,null,null,null,null,null,"Feb"]
[null,null,null,null,null,null,null,null,null,null,"Mar"]
[null,null,null,null,null,null,null,null,null,null,"Apr"]
[null,null,null,null,null,null,null,null,null,null,"May"]
[null,null,null,null,null,null,null,null,null,null,"Jun"]
[null,null,null,null,null,null,null,null,null,null,"Jul"]
[null,null,null,null,null,null,null,null,null,null,"Aug"]
[null,null,null,null,null,null,null,null,null,null,"Sep"]
[null,null,null,null,null,null,null,null,null,null,"Oct"]
[null,null,null,null,null,null,null,null,null,null,"Nov"]
[null,null,null,null,null,null,null,null,null,null,"Dec"]
[null,null,null,null,null,null,null,null,null,null,"Annual",{"$f":"AVERAGE(L67:L78)","v":{"$error":"#DIV/0!"}},{"$f":"MAX(M67:M78)","v":0},{"$f":"AVERAGE(N67:N78)","v":{"$error":"#DIV/0!"}},{"$f":"MAX(O67:O78)","v":0}]

{"sheet":"TOC","index":18,"n_rows":79,"n_cols":17,"rows_kept":79,"cut":false,"hidden":false,"merged":[[3,16,7,18],[9,16,11,18],[12,16,15,18],[66,9,78,9],[4,1,4,3],[4,4,4,6],[4,9,4,14],[6,9,18,9],[21,9,33,9],[36,9,48,9],[47,0,47,6],[48,0,51,6],[51,9,63,9]]}
[{"$f":"+'Cover Page'!$B$29","v":"Annual Performance Report 2024"},null,null,null,{"$f":"+'Cover Page'!$B$33","v":"Kent Enviropower Limited"}]
[]
["Monitoring of Total organic carbon emissions",null,null,"Whole Installation",null,null,"See  Notes in Cell Q3",null,null,{"$f":"+A3","v":"Monitoring of Total organic carbon emissions"},null,null,null,"Per Combustion Line",null,null,"Notes:"]
[null,null,null,null,null,null,null,null,null,null,null,null,null,null,null,null,"User to add logic to complete Whole installation, Table A5:G18. From the data in Per Combustion Line, Table J6:O79, subject to No. of lines installed"]
[{"$f":"+'Cover Page'!C39","v":2024},"1/2 Hourly Reference Periods",null,null,"Daily Reference Periods"]
["mg/Nm3","1/2 hourly TOC ELV","Monthly mean of half-hourly averages","Highest half- hourly average","Daily TOC ELV","Monthly mean of  daily averages","Highest daily average",null,null,{"$f":"+A5","v":2024},"mg/Nm3","Monthly mean of half-hourly averages","Highest half- hourly average","Monthly mean of  daily averages","Highest daily average"]
["Jan",10,{"$f":"AVERAGE(L7,L22,L37)","v":0.29295133333333334},{"$f":"AVERAGE(M7,M22,M37)","v":13.056675333333333},10,{"$f":"AVERAGE(N7,N22,N37)","v":0.28558466666666665},{"$f":"AVERAGE(O7,O22,O37)","v":0.74374233333333339},null,null,"A1","Jan",0.28550199999999998,4.783061,0.27769700000000003,0.48371199999999998]
["Feb",10,{"$f":"AVERAGE(L8,L23,L38)","v":0.42845133333333335},{"$f":"AVERAGE(M8,M23,M38)","v":9.8963400000000004},10,{"$f":"AVERAGE(N8,N23,N38)","v":0.38651400000000002},{"$f":"AVERAGE(O8,O23,O38)","v":0.90404466666666661},null,null,null,"Feb",0.35504000000000002,3.856868,0.35308200000000001,0.46650700000000001]
["Mar",10,0.38183833333333334,17.661460333333334,10,0.31571100000000002,0.61652733333333332,null,null,null,"Mar",0.43429699999999999,38.381546,0.40843400000000002,1.1577550000000001,null,"Whole Installation table A5:G18:"]
["Apr",10,0.42046666666666671,51.119805666666672,10,0.42241966666666664,2.8138263333333331,null,null,null,"Apr",0.29679100000000003,2.8357899999999998,0.29774499999999998,0.46006999999999998,null,"Mean: for 1/2 hourly and daily periods calculate mean of values across all operational combustion lines for the month"]
["May",10,0.46156200000000003,26.689498666666665,10,0.42889966666666668,1.2175659999999999,null,null,null,"May",0.39714500000000003,12.381188,0.39191500000000001,0.94446600000000003]
["Jun",10,0.54735433333333328,50.826163666666666,10,0.5273983333333333,1.6497433333333333,null,null,null,"Jun",0.50978699999999999,17.791342,0.47060000000000002,0.77444999999999997]
["Jul",10,0.54575233333333339,28.639398666666665,10,0.51554400000000011,0.99641766666666676,null,null,null,"Jul",0.53299600000000003,14.618042000000001,0.53342699999999998,1.0955820000000001,null,"Maximum: for 1/2 hourly and daily periods use the highest value across all operational combustion lines for the month"]
["Aug",10,0.75716299999999992,78.188429666666664,10,0.69132899999999997,2.9020956666666664,null,null,null,"Aug",0.48527999999999999,38.034633999999997,0.39493099999999998,0.98636400000000002]
["Sep",10,0.62538700000000003,19.620645333333332,10,0.5994343333333334,1.1675236666666666,null,null,null,"Sep",0.37993900000000003,18.218567,0.38231300000000001,0.66488700000000001]
["Oct",10,0.67348600000000003,18.483153000000001,10,0.57546300000000006,1.164785,null,null,null,"Oct","-","-","-","-"]
["Nov",10,0.46219566666666667,12.654901000000001,10,0.3949293333333333,1.190294,null,null,null,"Nov",0.28525899999999998,6.4065589999999997,0.285136,0.62312500000000004]
["Dec",10,0.33175166666666667,19.663492333333334,10,0.30270266666666662,0.91090499999999996,null,null,null,"Dec",0.19852300000000001,2.4344800000000002,0.20096,0.32173400000000002]
[null,null,null,null,null,null,null,null,null,null,"Annual",{"$f":"AVERAGE(L7:L18)","v":0.3782326363636363},{"$f":"MAX(M7:M18)","v":38.381546},{"$f":"AVERAGE(N7:N18)","v":0.36329454545454543},{"$f":"MAX(O7:O18)","v":1.1577550000000001}]
[]
[null,null,null,null,null,null,null,null,null,{"$f":"+A5","v":2024},"mg/Nm3","Monthly mean of half-hourly averages","Highest half- hourly average","Monthly mean of  daily averages","Highest daily average"]
[null,null,null,null,null,null,null,null,null,"A2","Jan",0.30156699999999997,27.583452000000001,0.28869,0.99589099999999997]
[null,null,null,null,null,null,null,null,null,null,"Feb",0.51119800000000004,15.354571999999999,0.40181,1.3120590000000001]
[null,null,null,null,null,null,null,null,null,null,"Mar",0.38131100000000001,10.996119,0.22638900000000001,0.28894999999999998]
[null,null,null,null,null,null,null,null,null,null,"Apr",0.62387099999999995,144.36436499999999,0.63602300000000001,7.469258]
[null,null,null,null,null,null,null,null,null,null,"May",0.56806299999999998,57.820430999999999,0.51197400000000004,2.0340050000000001]
[null,null,null,null,null,null,null,null,null,null,"Jun",0.56916199999999995,97.990898000000001,0.54967200000000005,2.2899400000000001]
[null,null,null,null,null,null,null,null,null,null,"Jul",0.748004,59.001384999999999,0.65407400000000004,1.292111]
[null,null,null,null,null,null,null,null,null,null,"Aug",0.76384600000000002,33.888596,0.67824799999999996,1.692431]
[null,null,null,null,null,null,null,null,null,null,"Sep",0.744896,24.031265000000001,0.70000300000000004,1.4111309999999999]
[null,null,null,null,null,null,null,null,null,null,"Oct",0.51032599999999995,14.966829000000001,0.49026900000000001,1.0562689999999999]
[null,null,null,null,null,null,null,null,null,null,"Nov",0.38597999999999999,16.769117000000001,0.33798,1.2924709999999999]
[null,null,null,null,null,null,null,null,null,null,"Dec",0.36675400000000002,33.176516999999997,0.32032699999999997,1.207981]
[null,null,null,null,null,null,null,null,null,null,"Annual",{"$f":"AVERAGE(L22:L33)","v":0.53958150000000005},{"$f":"MAX(M22:M33)","v":144.36436499999999},{"$f":"AVERAGE(N22:N33)","v":0.48295491666666662},{"$f":"MAX(O22:O33)","v":7.469258}]
[]
[null,null,null,null,null,null,null,null,null,{"$f":"+A5","v":2024},"mg/Nm3","Monthly mean of half-hourly averages","Highest half- hourly average","Monthly mean of  daily averages","Highest daily average"]
[null,null,null,null,null,null,null,null,null,"A3","Jan",0.29178500000000002,6.8035129999999997,0.29036699999999999,0.75162399999999996]
[null,null,null,null,null,null,null,null,null,null,"Feb",0.41911599999999999,10.47758,0.40465000000000001,0.93356799999999995]
[null,null,null,null,null,null,null,null,null,null,"Mar",0.32990700000000001,3.606716,0.31230999999999998,0.40287699999999999]
[null,null,null,null,null,null,null,null,null,null,"Apr",0.34073799999999999,6.159262,0.33349099999999998,0.51215100000000002]
[null,null,null,null,null,null,null,null,null,null,"May",0.41947800000000002,9.8668770000000006,0.38280999999999998,0.67422700000000002]
[null,null,null,null,null,null,null,null,null,null,"Jun",0.563114,36.696250999999997,0.56192299999999995,1.8848400000000001]
[null,null,null,null,null,null,null,null,null,null,"Jul",0.35625699999999999,12.298769,0.35913099999999998,0.60155999999999998]
[null,null,null,null,null,null,null,null,null,null,"Aug",1.0223629999999999,162.64205899999999,1.0008079999999999,6.0274919999999996]
[null,null,null,null,null,null,null,null,null,null,"Sep",0.75132600000000005,16.612103999999999,0.71598700000000004,1.426553]
[null,null,null,null,null,null,null,null,null,null,"Oct",0.836646,21.999476999999999,0.66065700000000005,1.273301]
[null,null,null,null,null,null,null,null,null,null,"Nov",0.71534799999999998,14.789027000000001,0.56167199999999995,1.655286]
["Comments :",null,null,null,null,null,null,null,null,null,"Dec",0.42997800000000003,23.379480000000001,0.38682100000000003,1.2030000000000001]
["A1 (line 1) had an outage for a complete month in October (hence no data available)",null,null,null,null,null,null,null,null,null,"Annual",{"$f":"AVERAGE(L37:L48)","v":0.53967133333333328},{"$f":"MAX(M37:M48)","v":162.64205899999999},{"$f":"AVERAGE(N37:N48)","v":0.49755224999999997},{"$f":"MAX(O37:O48)","v":6.0274919999999996}]
[]
[null,null,null,null,null,null,null,null,null,{"$f":"+A5","v":2024},"mg/Nm3","Monthly mean of half-hourly averages","Highest half- hourly average","Monthly mean of  daily averages","Highest daily average"]
[null,null,null,null,null,null,null,null,null,"A4","Jan"]
[null,null,null,null,null,null,null,null,null,null,"Feb"]
[null,null,null,null,null,null,null,null,null,null,"Mar"]
[null,null,null,null,null,null,null,null,null,null,"Apr"]
[null,null,null,null,null,null,null,null,null,null,"May"]
[null,null,null,null,null,null,null,null,null,null,"Jun"]
[null,null,null,null,null,null,null,null,null,null,"Jul"]
[null,null,null,null,null,null,null,null,null,null,"Aug"]
[null,null,null,null,null,null,null,null,null,null,"Sep"]
[null,null,null,null,null,null,null,null,null,null,"Oct"]
[null,null,null,null,null,null,null,null,null,null,"Nov"]
[null,null,null,null,null,null,null,null,null,null,"Dec"]
[null,null,null,null,null,null,null,null,null,null,"Annual",{"$f":"AVERAGE(L52:L63)","v":{"$error":"#DIV/0!"}},{"$f":"MAX(M52:M63)","v":0},{"$f":"AVERAGE(N52:N63)","v":{"$error":"#DIV/0!"}},{"$f":"MAX(O52:O63)","v":0}]
[]
[null,null,null,null,null,null,null,null,null,{"$f":"+A5","v":2024},"mg/Nm3","Monthly mean of half-hourly averages","Highest half- hourly average","Monthly mean of  daily averages","Highest daily average"]
[null,null,null,null,null,null,null,null,null,"A5","Jan"]
[null,null,null,null,null,null,null,null,null,null,"Feb"]
[null,null,null,null,null,null,null,null,null,null,"Mar"]
[null,null,null,null,null,null,null,null,null,null,"Apr"]
[null,null,null,null,null,null,null,null,null,null,"May"]
[null,null,null,null,null,null,null,null,null,null,"Jun"]
[null,null,null,null,null,null,null,null,null,null,"Jul"]
[null,null,null,null,null,null,null,null,null,null,"Aug"]
[null,null,null,null,null,null,null,null,null,null,"Sep"]
[null,null,null,null,null,null,null,null,null,null,"Oct"]
[null,null,null,null,null,null,null,null,null,null,"Nov"]
[null,null,null,null,null,null,null,null,null,null,"Dec"]
[null,null,null,null,null,null,null,null,null,null,"Annual",{"$f":"AVERAGE(L67:L78)","v":{"$error":"#DIV/0!"}},{"$f":"MAX(M67:M78)","v":0},{"$f":"AVERAGE(N67:N78)","v":{"$error":"#DIV/0!"}},{"$f":"MAX(O67:O78)","v":0}]

{"sheet":"Particulates","index":19,"n_rows":79,"n_cols":17,"rows_kept":79,"cut":false,"hidden":false,"merged":[[4,16,8,18],[10,16,12,18],[13,16,16,18],[66,9,78,9],[4,1,4,3],[4,4,4,6],[4,9,4,14],[6,9,18,9],[21,9,33,9],[36,9,48,9],[47,0,47,6],[48,0,51,6],[51,9,63,9],[18,4,18,6]]}
[{"$f":"+'Cover Page'!$B$29","v":"Annual Performance Report 2024"},null,null,null,{"$f":"+'Cover Page'!$B$33","v":"Kent Enviropower Limited"}]
[]
["Monitoring of Particulate matter emissions",null,null,"Whole Installation",null,null,"See  Notes in Cell Q3",null,null,{"$f":"+A3","v":"Monitoring of Particulate matter emissions"},null,null,null,"Per Combustion Line",null,null,"Notes:"]
[]
[{"$f":"+'Cover Page'!C39","v":2024},"1/2 Hourly Reference Periods",null,null,"Daily Reference Periods",null,null,null,null,null,null,null,null,null,null,null,"User to add logic to complete Whole installation, Table A5:G18. From the data in Per Combustion Line, Table J6:O79, subject to No. of lines installed"]
["mg/Nm3","1/2 hourly PM ELV","Monthly mean of half-hourly averages","Highest half- hourly average","Daily PM ELV","Monthly mean of  daily averages","Highest daily average",null,null,{"$f":"+A5","v":2024},"mg/Nm3","Monthly mean of half-hourly averages","Highest half- hourly average","Monthly mean of  daily averages","Highest daily average"]
["Jan",30,{"$f":"AVERAGE(L7,L22,L37)","v":2.5750833333333332},{"$f":"AVERAGE(M7,M22,M37)","v":6.2686166666666665},5,{"$f":"AVERAGE(N7,N22,N37)","v":2.5294643333333333},{"$f":"AVERAGE(O7,O22,O37)","v":3.3208543333333331},null,null,"A1","Jan",2.25264,7.8777900000000001,2.1737329999999999,3.296773]
["Feb",30,{"$f":"AVERAGE(L8,L23,L38)","v":2.9956433333333332},{"$f":"AVERAGE(M8,M23,M38)","v":6.7321666666666671},5,{"$f":"AVERAGE(N8,N23,N38)","v":2.9690763333333337},{"$f":"AVERAGE(O8,O23,O38)","v":3.5501770000000001},null,null,null,"Feb",2.8030200000000001,5.1680400000000004,2.757349,3.251681]
["Mar",30,2.0970166666666668,4.7362166666666665,5,2.0904346666666664,2.5689143333333333,null,null,null,"Mar",2.6843300000000001,5.7272600000000002,2.676094,3.3230729999999999]
["Apr",30,2.7141266666666666,7.2127499999999998,5,2.6790796666666665,3.885841333333333,null,null,null,"Apr",2.9780000000000002,7.0356500000000004,2.9659589999999998,3.7812739999999998,null,"Whole Installation table A5:G18:"]
["May",30,2.5085633333333335,7.9086933333333329,5,2.3665790000000002,3.2303403333333329,null,null,null,"May",2.1355,7.7680899999999999,2.0339469999999999,2.6879409999999999,null,"Mean: for 1/2 hourly and daily periods calculate mean of values across all operational combustion lines for the month"]
["Jun",30,3.2110666666666661,8.9343966666666663,5,3.0127389999999998,3.8861906666666663,null,null,null,"Jun",3.3401100000000001,9.8771599999999999,2.7902670000000001,3.1227719999999999]
["Jul",30,2.91601,7.0738833333333337,5,2.9109610000000004,4.1866449999999995,null,null,null,"Jul",2.35928,6.4211299999999998,2.3246530000000001,3.5184150000000001]
["Aug",30,3.2136099999999996,7.4442766666666671,5,3.1489856666666669,4.1366019999999999,null,null,null,"Aug",3.0108999999999999,5.9041100000000002,2.9700570000000002,3.935216,null,"Maximum: for 1/2 hourly and daily periods use the highest value across all operational combustion lines for the month"]
["Sep",30,3.4492600000000002,10.750393333333335,5,3.3701633333333327,4.4588063333333334,null,null,null,"Sep",3.4558800000000001,7.2937900000000004,3.4418099999999998,4.3435090000000001]
["Oct",30,3.2671999999999999,10.050610000000001,5,3.12677,4.0958950000000005,null,null,null,"Oct","-","-","-","-"]
["Nov",30,3.7481866666666668,8.7980800000000006,5,2.9247076666666665,3.6611329999999995,null,null,null,"Nov",0.84753000000000001,1.2524500000000001,0.84724299999999997,0.999749]
["Dec",30,1.1201833333333333,7.7953833333333336,5,1.0851516666666667,1.8089859999999998,null,null,null,"Dec",0.98665999999999998,2.3976299999999999,0.98899499999999996,1.069078]
[null,null,null,null,null,null,null,null,null,null,"Annual",{"$f":"AVERAGE(L7:L18)","v":2.441259090909091},{"$f":"MAX(M7:M18)","v":9.8771599999999999},{"$f":"AVERAGE(N7:N18)","v":2.3609188181818181},{"$f":"MAX(O7:O18)","v":4.3435090000000001}]
[]
[null,null,null,null,null,null,null,null,null,{"$f":"+A5","v":2024},"mg/Nm3","Monthly mean of half-hourly averages","Highest half- hourly average","Monthly mean of  daily averages","Highest daily average"]
[null,null,null,null,null,null,null,null,null,"A2","Jan",2.6328399999999998,5.1567800000000004,2.5924999999999998,3.2928299999999999]
[null,null,null,null,null,null,null,null,null,null,"Feb",3.0703999999999998,8.8279599999999991,2.9964,3.7008000000000001]
[null,null,null,null,null,null,null,null,null,null,"Mar",1.0112399999999999,2.4450599999999998,1.03911,1.13612]
[null,null,null,null,null,null,null,null,null,null,"Apr",2.43127,6.7773500000000002,2.3618000000000001,3.18764]
[null,null,null,null,null,null,null,null,null,null,"May",2.7428699999999999,11.59066,2.47323,3.90096]
[null,null,null,null,null,null,null,null,null,null,"Jun",3.1268199999999999,10.35642,3.0989200000000001,4.5381900000000002]
[null,null,null,null,null,null,null,null,null,null,"Jul",3.2352300000000001,8.1604799999999997,3.2311000000000001,4.5534699999999999]
[null,null,null,null,null,null,null,null,null,null,"Aug",3.4187699999999999,6.8732300000000004,3.39724,4.3116700000000003]
[null,null,null,null,null,null,null,null,null,null,"Sep",3.7566199999999998,12.680910000000001,3.5502699999999998,4.3693]
[null,null,null,null,null,null,null,null,null,null,"Oct",3.42258,8.9606600000000007,3.3765200000000002,4.63957]
[null,null,null,null,null,null,null,null,null,null,"Nov",4.0803599999999998,7.46387,4.0469900000000001,4.7378400000000003]
[null,null,null,null,null,null,null,null,null,null,"Dec",0.99583999999999995,1.6515899999999999,0.99245000000000005,1.26362]
[null,null,null,null,null,null,null,null,null,null,"Annual",{"$f":"AVERAGE(L22:L33)","v":2.8270700000000004},{"$f":"MAX(M22:M33)","v":12.680910000000001},{"$f":"AVERAGE(N22:N33)","v":2.7630441666666665},{"$f":"MAX(O22:O33)","v":4.7378400000000003}]
[]
[null,null,null,null,null,null,null,null,null,{"$f":"+A5","v":2024},"mg/Nm3","Monthly mean of half-hourly averages","Highest half- hourly average","Monthly mean of  daily averages","Highest daily average"]
[null,null,null,null,null,null,null,null,null,"A3","Jan",2.8397700000000001,5.77128,2.8221599999999998,3.37296]
[null,null,null,null,null,null,null,null,null,null,"Feb",3.1135100000000002,6.2004999999999999,3.1534800000000001,3.6980499999999998]
[null,null,null,null,null,null,null,null,null,null,"Mar",2.5954799999999998,6.0363300000000004,2.5560999999999998,3.2475499999999999]
[null,null,null,null,null,null,null,null,null,null,"Apr",2.7331099999999999,7.8252499999999996,2.7094800000000001,4.6886099999999997]
[null,null,null,null,null,null,null,null,null,null,"May",2.6473200000000001,4.3673299999999999,2.5925600000000002,3.1021200000000002]
[null,null,null,null,null,null,null,null,null,null,"Jun",3.1662699999999999,6.5696099999999999,3.1490300000000002,3.9976099999999999]
[null,null,null,null,null,null,null,null,null,null,"Jul",3.1535199999999999,6.6400399999999999,3.17713,4.4880500000000003]
[null,null,null,null,null,null,null,null,null,null,"Aug",3.21116,9.5554900000000007,3.0796600000000001,4.1629199999999997]
[null,null,null,null,null,null,null,null,null,null,"Sep",3.1352799999999998,12.276479999999999,3.1184099999999999,4.6636100000000003]
[null,null,null,null,null,null,null,null,null,null,"Oct",3.1118199999999998,11.140560000000001,2.8770199999999999,3.5522200000000002]
[null,null,null,null,null,null,null,null,null,null,"Nov",6.3166700000000002,17.67792,3.8798900000000001,5.2458099999999996]
["Comments :",null,null,null,null,null,null,null,null,null,"Dec",1.37805,19.336929999999999,1.2740100000000001,3.0942599999999998]
["A1 (line 1) had an outage for a complete month in October (hence no data available)",null,null,null,null,null,null,null,null,null,"Annual",{"$f":"AVERAGE(L37:L48)","v":3.1168300000000002},{"$f":"MAX(M37:M48)","v":19.336929999999999},{"$f":"AVERAGE(N37:N48)","v":2.865744166666667},{"$f":"MAX(O37:O48)","v":5.2458099999999996}]
[]
[null,null,null,null,null,null,null,null,null,{"$f":"+A5","v":2024},"mg/Nm3","Monthly mean of half-hourly averages","Highest half- hourly average","Monthly mean of  daily averages","Highest daily average"]
[null,null,null,null,null,null,null,null,null,"A4","Jan"]
[null,null,null,null,null,null,null,null,null,null,"Feb"]
[null,null,null,null,null,null,null,null,null,null,"Mar"]
[null,null,null,null,null,null,null,null,null,null,"Apr"]
[null,null,null,null,null,null,null,null,null,null,"May"]
[null,null,null,null,null,null,null,null,null,null,"Jun"]
[null,null,null,null,null,null,null,null,null,null,"Jul"]
[null,null,null,null,null,null,null,null,null,null,"Aug"]
[null,null,null,null,null,null,null,null,null,null,"Sep"]
[null,null,null,null,null,null,null,null,null,null,"Oct"]
[null,null,null,null,null,null,null,null,null,null,"Nov"]
[null,null,null,null,null,null,null,null,null,null,"Dec"]
[null,null,null,null,null,null,null,null,null,null,"Annual",{"$f":"AVERAGE(L52:L63)","v":{"$error":"#DIV/0!"}},{"$f":"MAX(M52:M63)","v":0},{"$f":"AVERAGE(N52:N63)","v":{"$error":"#DIV/0!"}},{"$f":"MAX(O52:O63)","v":0}]
[]
[null,null,null,null,null,null,null,null,null,{"$f":"+A5","v":2024},"mg/Nm3","Monthly mean of half-hourly averages","Highest half- hourly average","Monthly mean of  daily averages","Highest daily average"]
[null,null,null,null,null,null,null,null,null,"A5","Jan"]
[null,null,null,null,null,null,null,null,null,null,"Feb"]
[null,null,null,null,null,null,null,null,null,null,"Mar"]
[null,null,null,null,null,null,null,null,null,null,"Apr"]
[null,null,null,null,null,null,null,null,null,null,"May"]
[null,null,null,null,null,null,null,null,null,null,"Jun"]
[null,null,null,null,null,null,null,null,null,null,"Jul"]
[null,null,null,null,null,null,null,null,null,null,"Aug"]
[null,null,null,null,null,null,null,null,null,null,"Sep"]
[null,null,null,null,null,null,null,null,null,null,"Oct"]
[null,null,null,null,null,null,null,null,null,null,"Nov"]
[null,null,null,null,null,null,null,null,null,null,"Dec"]
[null,null,null,null,null,null,null,null,null,null,"Annual",{"$f":"AVERAGE(L67:L78)","v":{"$error":"#DIV/0!"}},{"$f":"MAX(M67:M78)","v":0},{"$f":"AVERAGE(N67:N78)","v":{"$error":"#DIV/0!"}},{"$f":"MAX(O67:O78)","v":0}]

{"sheet":"CO 0.5 hourly","index":20,"n_rows":82,"n_cols":17,"rows_kept":82,"cut":false,"hidden":false,"merged":[[4,0,5,6],[6,16,10,18],[12,16,14,18],[15,16,18,18],[69,9,81,9],[7,1,7,3],[7,4,7,6],[7,9,7,14],[9,9,21,9],[24,9,36,9],[39,9,51,9],[50,0,50,6],[51,0,54,6],[54,9,66,9]]}
[{"$f":"+'Cover Page'!$B$29","v":"Annual Performance Report 2024"},null,null,null,{"$f":"+'Cover Page'!$B$33","v":"Kent Enviropower Limited"}]
[]
["Monitoring of Carbon Monoxide (half hourly)",null,null,"Whole Installation",null,null,"See  Notes in Cell Q3",null,null,{"$f":"+A3","v":"Monitoring of Carbon Monoxide (half hourly)"},null,null,null,"Per Combustion Line",null,null,"Notes:"]
[]
["Please complete this tab for your plant if you have 1/2 hourly CO ELVs; otherwise, leave it blank and complete the CO 95% 10 min tab"]
[]
[null,null,null,null,null,null,null,null,null,null,null,null,null,null,null,null,"User to add logic to complete Whole installation, Table A5:G18. From the data in Per Combustion Line, Table J6:O79, subject to No. of lines installed"]
[{"$f":"+'Cover Page'!C39","v":2024},"1/2 Hourly Reference Periods",null,null,"Daily Reference Periods"]
["mg/Nm3","1/2 hourly CO ELV","Monthly mean of half-hourly averages","Highest half- hourly average","Daily CO ELV","Monthly mean of  daily averages","Highest daily average",null,null,{"$f":"+A8","v":2024},"mg/Nm3","Monthly mean of half-hourly averages","Highest half- hourly average","Monthly mean of  daily averages","Highest daily average"]
["Jan",100,null,null,50,null,null,null,null,"A1","Jan"]
["Feb",{"$f":"+B10","v":100},null,null,{"$f":"+E10","v":50},null,null,null,null,null,"Feb"]
["Mar",{"$f":"+B11","v":100},null,null,{"$f":"+E11","v":50},null,null,null,null,null,"Mar",null,null,null,null,null,"Whole Installation table A5:G18:"]
["Apr",100,null,null,50,null,null,null,null,null,"Apr",null,null,null,null,null,"Mean: for 1/2 hourly and daily periods calculate mean of values across all operational combustion lines for the month"]
["May",100,null,null,50,null,null,null,null,null,"May"]
["Jun",100,null,null,50,null,null,null,null,null,"Jun"]
["Jul",100,null,null,50,null,null,null,null,null,"Jul",null,null,null,null,null,"Maximum: for 1/2 hourly and daily periods use the highest value across all operational combustion lines for the month"]
["Aug",100,null,null,50,null,null,null,null,null,"Aug"]
["Sep",100,null,null,50,null,null,null,null,null,"Sep"]
["Oct",100,null,null,50,null,null,null,null,null,"Oct"]
["Nov",100,null,null,50,null,null,null,null,null,"Nov"]
["Dec",100,null,null,50,null,null,null,null,null,"Dec"]
[null,null,null,null,null,null,null,null,null,null,"Annual",{"$f":"AVERAGE(L10:L21)","v":{"$error":"#DIV/0!"}},{"$f":"MAX(M10:M21)","v":0},{"$f":"AVERAGE(N10:N21)","v":{"$error":"#DIV/0!"}},{"$f":"MAX(O10:O21)","v":0}]
[]
[null,null,null,null,null,null,null,null,null,{"$f":"+A8","v":2024},"mg/Nm3","Monthly mean of half-hourly averages","Highest half- hourly average","Monthly mean of  daily averages","Highest daily average"]
[null,null,null,null,null,null,null,null,null,"A2","Jan"]
[null,null,null,null,null,null,null,null,null,null,"Feb"]
[null,null,null,null,null,null,null,null,null,null,"Mar"]
[null,null,null,null,null,null,null,null,null,null,"Apr"]
[null,null,null,null,null,null,null,null,null,null,"May"]
[null,null,null,null,null,null,null,null,null,null,"Jun"]
[null,null,null,null,null,null,null,null,null,null,"Jul"]
[null,null,null,null,null,null,null,null,null,null,"Aug"]
[null,null,null,null,null,null,null,null,null,null,"Sep"]
[null,null,null,null,null,null,null,null,null,null,"Oct"]
[null,null,null,null,null,null,null,null,null,null,"Nov"]
[null,null,null,null,null,null,null,null,null,null,"Dec"]
[null,null,null,null,null,null,null,null,null,null,"Annual",{"$f":"AVERAGE(L25:L36)","v":{"$error":"#DIV/0!"}},{"$f":"MAX(M25:M36)","v":0},{"$f":"AVERAGE(N25:N36)","v":{"$error":"#DIV/0!"}},{"$f":"MAX(O25:O36)","v":0}]
[]
[null,null,null,null,null,null,null,null,null,{"$f":"+A8","v":2024},"mg/Nm3","Monthly mean of half-hourly averages","Highest half- hourly average","Monthly mean of  daily averages","Highest daily average"]
[null,null,null,null,null,null,null,null,null,"A3","Jan"]
[null,null,null,null,null,null,null,null,null,null,"Feb"]
[null,null,null,null,null,null,null,null,null,null,"Mar"]
[null,null,null,null,null,null,null,null,null,null,"Apr"]
[null,null,null,null,null,null,null,null,null,null,"May"]
[null,null,null,null,null,null,null,null,null,null,"Jun"]
[null,null,null,null,null,null,null,null,null,null,"Jul"]
[null,null,null,null,null,null,null,null,null,null,"Aug"]
[null,null,null,null,null,null,null,null,null,null,"Sep"]
[null,null,null,null,null,null,null,null,null,null,"Oct"]
[null,null,null,null,null,null,null,null,null,null,"Nov"]
["Comments :",null,null,null,null,null,null,null,null,null,"Dec"]
[null,null,null,null,null,null,null,null,null,null,"Annual",{"$f":"AVERAGE(L40:L51)","v":{"$error":"#DIV/0!"}},{"$f":"MAX(M40:M51)","v":0},{"$f":"AVERAGE(N40:N51)","v":{"$error":"#DIV/0!"}},{"$f":"MAX(O40:O51)","v":0}]
[]
[null,null,null,null,null,null,null,null,null,{"$f":"+A8","v":2024},"mg/Nm3","Monthly mean of half-hourly averages","Highest half- hourly average","Monthly mean of  daily averages","Highest daily average"]
[null,null,null,null,null,null,null,null,null,"A4","Jan"]
[null,null,null,null,null,null,null,null,null,null,"Feb"]
[null,null,null,null,null,null,null,null,null,null,"Mar"]
[null,null,null,null,null,null,null,null,null,null,"Apr"]
[null,null,null,null,null,null,null,null,null,null,"May"]
[null,null,null,null,null,null,null,null,null,null,"Jun"]
[null,null,null,null,null,null,null,null,null,null,"Jul"]
[null,null,null,null,null,null,null,null,null,null,"Aug"]
[null,null,null,null,null,null,null,null,null,null,"Sep"]
[null,null,null,null,null,null,null,null,null,null,"Oct"]
[null,null,null,null,null,null,null,null,null,null,"Nov"]
[null,null,null,null,null,null,null,null,null,null,"Dec"]
[null,null,null,null,null,null,null,null,null,null,"Annual",{"$f":"AVERAGE(L55:L66)","v":{"$error":"#DIV/0!"}},{"$f":"MAX(M55:M66)","v":0},{"$f":"AVERAGE(N55:N66)","v":{"$error":"#DIV/0!"}},{"$f":"MAX(O55:O66)","v":0}]
[]
[null,null,null,null,null,null,null,null,null,{"$f":"+A8","v":2024},"mg/Nm3","Monthly mean of half-hourly averages","Highest half- hourly average","Monthly mean of  daily averages","Highest daily average"]
[null,null,null,null,null,null,null,null,null,"A5","Jan"]
[null,null,null,null,null,null,null,null,null,null,"Feb"]
[null,null,null,null,null,null,null,null,null,null,"Mar"]
[null,null,null,null,null,null,null,null,null,null,"Apr"]
[null,null,null,null,null,null,null,null,null,null,"May"]
[null,null,null,null,null,null,null,null,null,null,"Jun"]
[null,null,null,null,null,null,null,null,null,null,"Jul"]
[null,null,null,null,null,null,null,null,null,null,"Aug"]
[null,null,null,null,null,null,null,null,null,null,"Sep"]
[null,null,null,null,null,null,null,null,null,null,"Oct"]
[null,null,null,null,null,null,null,null,null,null,"Nov"]
[null,null,null,null,null,null,null,null,null,null,"Dec"]
[null,null,null,null,null,null,null,null,null,null,"Annual",{"$f":"AVERAGE(L70:L81)","v":{"$error":"#DIV/0!"}},{"$f":"MAX(M70:M81)","v":0},{"$f":"AVERAGE(N70:N81)","v":{"$error":"#DIV/0!"}},{"$f":"MAX(O70:O81)","v":0}]

{"sheet":"CO 95% 10 min","index":21,"n_rows":82,"n_cols":19,"rows_kept":82,"cut":false,"hidden":false,"merged":[[4,0,5,7],[6,18,10,20],[12,18,14,20],[15,18,18,20],[69,10,81,10],[7,1,7,4],[7,5,7,7],[7,10,7,16],[9,10,21,10],[24,10,36,10],[39,10,51,10],[50,0,50,7],[51,0,54,7],[54,10,66,10]]}
[{"$f":"+'Cover Page'!$B$29","v":"Annual Performance Report 2024"},null,null,null,{"$f":"+'Cover Page'!$B$33","v":"Kent Enviropower Limited"}]
[]
["Monitoring of Carbon Monoxide (10-minute avg)",null,null,null,"Whole Installation",null,null,"See  Notes in Cell S3",null,{"$f":"+A3","v":"Monitoring of Carbon Monoxide (10-minute avg)"},null,null,null,null,"Per Combustion Line",null,"Notes:",null,"Notes:"]
[]
["Please complete this tab for your plant if you have 10-minute average CO ELVs; otherwise, leave it blank and complete the CO 0.5 hourly tab"]
[]
[null,null,null,null,null,null,null,null,null,null,null,null,null,null,null,null,null,null,"User to add logic to complete Whole installation, Table A5:H18. From the data in Per Combustion Line, Table K6:Q79, subject to No. of lines installed"]
[{"$f":"+'Cover Page'!C39","v":2024},"10-minute Reference Periods",null,null,null,"Daily Reference Periods"]
["mg/Nm3","95%ile 10-min avg CO ELV","Highest daily 95%ile 10-min average","Monthly mean of 10-min averages","Highest 10-min average","Daily CO ELV","Monthly mean of  daily averages","Highest daily average",null,null,{"$f":"+A8","v":2024},"mg/Nm3","Highest daily 95%ile 10-min average","Monthly mean of 10-min averages","Highest 10-min average","Monthly mean of  daily averages","Highest daily average"]
["Jan",150,{"$f":"AVERAGE(M10,M25,M40)","v":2.7906666666666666},{"$f":"AVERAGE(N10,N25,N40)","v":1.8095333333333334},{"$f":"AVERAGE(O10,O25,O40)","v":828.55889999999999},50,{"$f":"AVERAGE(P10,P25,P40)","v":1.688133333333333},{"$f":"AVERAGE(Q10,Q25,Q40)","v":12.844366666666666},null,null,"A1","Jan",0.1721,0.49230000000000002,618.8365,0.4551,5.1467000000000001]
["Feb",{"$f":"+B10","v":150},{"$f":"AVERAGE(M11,M26,M41)","v":8.8367333333333331},{"$f":"AVERAGE(N11,N26,N41)","v":2.9272000000000005},{"$f":"AVERAGE(O11,O26,O41)","v":678.86569999999995},{"$f":"+F10","v":50},{"$f":"AVERAGE(P11,P26,P41)","v":2.4065333333333334},{"$f":"AVERAGE(Q11,Q26,Q41)","v":10.608166666666667},null,null,null,"Feb",0.24199999999999999,0.75060000000000004,355.93079999999998,0.749,3.6366000000000001]
["Mar",{"$f":"+B11","v":150},7.0667333333333344,4.0807666666666664,1611.4970333333333,{"$f":"+F11","v":50},2.2573666666666665,13.739733333333334,null,null,null,"Mar",0.65010000000000001,3.8519000000000001,3304.4609,3.1886000000000001,29.549600000000002,null,"Whole Installation table A5:H18:"]
["Apr",150,8.1821000000000002,3.3234666666666666,1317.7810999999999,50,3.3222666666666663,26.160933333333332,null,null,null,"Apr",0.4123,0.58689999999999998,122.1512,0.56869999999999998,2.2833999999999999,null,"Mean: for 10-min and daily periods use average of all operational combustion lines."]
["May",150,13.579533333333336,4.5933666666666664,1559.6247666666666,50,4.2065666666666663,28.928299999999997,null,null,null,"May",1.661,1.3441000000000001,300.03719999999998,1.2784,10.7379]
["Jun",150,21.343466666666668,5.2909999999999995,937.91559999999993,50,4.916433333333333,17.149199999999997,null,null,null,"Jun",3.4356,2.6095999999999999,614.5385,1.9189000000000001,5.0240999999999998]
["Jul",150,37.487633333333328,8.209833333333334,1601.5001333333332,50,7.4753666666666669,19.225933333333334,null,null,null,"Jul",19.5564,4.9066000000000001,704.53060000000005,4.9874000000000001,14.0738,null,"Maximum: for 10-min and daily periods use the highest of all operational combustion lines in any month."]
["Aug",150,38.877699999999997,9.2533333333333339,1347.4444000000001,50,7.8299666666666665,21.60693333333333,null,null,null,"Aug",9.5608000000000004,5.4108999999999998,1846.7086999999999,3.1211000000000002,13.2501]
["Sep",150,38.232833333333339,7.8106,817.00450000000001,50,7.2581999999999995,15.374600000000001,null,null,null,"Sep",7.2080000000000002,2.8553000000000002,441.81760000000003,2.8081,7.5533000000000001]
["Oct",150,36.115700000000004,7.2036999999999995,770.62580000000003,50,6.4805999999999999,15.452850000000002,null,null,null,"Oct","-","-","-","-","-"]
["Nov",150,21.440799999999996,5.1756666666666673,830.06763333333345,50,3.9027000000000007,14.2521,null,null,null,"Nov",1.0373000000000001,1.8065,531.62270000000001,1.6667000000000001,11.507]
["Dec",150,6.2685666666666675,3.1675999999999997,1078.7237666666667,50,2.3772333333333333,14.217233333333334,null,null,null,"Dec",0.78080000000000005,0.84040000000000004,438.5564,0.84,6.1813000000000002]
[null,null,null,null,null,null,null,null,null,null,null,"Annual",{"$f":"AVERAGE(M10:M21)","v":4.0651272727272731},null,{"$f":"MAX(O10:O21)","v":3304.4609},{"$f":"AVERAGE(P10:P21)","v":1.962},{"$f":"MAX(Q10:Q21)","v":29.549600000000002}]
[]
[null,null,null,null,null,null,null,null,null,null,{"$f":"+A8","v":2024},"mg/Nm3","Highest daily 95%ile 10-min average","Monthly mean of 10-min averages","Highest 10-min average","Monthly mean of  daily averages","Highest daily average"]
[null,null,null,null,null,null,null,null,null,null,"A2","Jan",1.2272000000000001,2.5918000000000001,822.12900000000002,2.3100999999999998,13.097799999999999]
[null,null,null,null,null,null,null,null,null,null,null,"Feb",20.5213,5.7849000000000004,886.85249999999996,4.5072000000000001,17.2273]
[null,null,null,null,null,null,null,null,null,null,null,"Mar",12.1585,5.6279000000000003,728.89469999999994,1.2853000000000001,2.4910999999999999]
[null,null,null,null,null,null,null,null,null,null,null,"Apr",12.2201,5.8723000000000001,3347.5846999999999,6.1109,64.647099999999995]
[null,null,null,null,null,null,null,null,null,null,null,"May",27.201000000000001,8.3163,3865.3022000000001,7.5260999999999996,55.842599999999997]
[null,null,null,null,null,null,null,null,null,null,null,"Jun",25.606200000000001,5.9836999999999998,1380.5835,5.7127999999999997,14.7111]
[null,null,null,null,null,null,null,null,null,null,null,"Jul",52.408900000000003,12.3003,3405.1873000000001,10.262,27.3522]
[null,null,null,null,null,null,null,null,null,null,null,"Aug",49.3566,12.0059,1453.8196,10.8491,25.555299999999999]
[null,null,null,null,null,null,null,null,null,null,null,"Sep",60.338900000000002,11.9331,1306.6371999999999,10.630800000000001,18.682400000000001]
[null,null,null,null,null,null,null,null,null,null,null,"Oct",35.846899999999998,7.2754000000000003,1011.6361000000001,7.0354000000000001,16.737400000000001]
[null,null,null,null,null,null,null,null,null,null,null,"Nov",20.846399999999999,5.7869000000000002,1316.4747,5.5305,16.461200000000002]
[null,null,null,null,null,null,null,null,null,null,null,"Dec",13.146000000000001,5.0233999999999996,977.62660000000005,3.5663999999999998,12.7049]
[null,null,null,null,null,null,null,null,null,null,null,"Annual",{"$f":"AVERAGE(M25:M36)","v":27.573166666666676},null,{"$f":"MAX(O25:O36)","v":3865.3022000000001},{"$f":"AVERAGE(P25:P36)","v":6.2772166666666669},{"$f":"MAX(Q25:Q36)","v":64.647099999999995}]
[]
[null,null,null,null,null,null,null,null,null,null,{"$f":"+A8","v":2024},"mg/Nm3","Highest daily 95%ile 10-min average","Monthly mean of 10-min averages","Highest 10-min average","Monthly mean of  daily averages","Highest daily average"]
[null,null,null,null,null,null,null,null,null,null,"A3","Jan",6.9726999999999997,2.3445,1044.7112,2.2991999999999999,20.288599999999999]
[null,null,null,null,null,null,null,null,null,null,null,"Feb",5.7469000000000001,2.2461000000000002,793.81380000000001,1.9634,10.960599999999999]
[null,null,null,null,null,null,null,null,null,null,null,"Mar",8.3916000000000004,2.7625000000000002,801.13549999999998,2.2982,9.1784999999999997]
[null,null,null,null,null,null,null,null,null,null,null,"Apr",11.9139,3.5112000000000001,483.60739999999998,3.2871999999999999,11.552300000000001]
[null,null,null,null,null,null,null,null,null,null,null,"May",11.8766,4.1196999999999999,513.53489999999999,3.8151999999999999,20.2044]
[null,null,null,null,null,null,null,null,null,null,null,"Jun",34.988599999999998,7.2797000000000001,818.62480000000005,7.1176000000000004,31.712399999999999]
[null,null,null,null,null,null,null,null,null,null,null,"Jul",40.497599999999998,7.4226000000000001,694.78250000000003,7.1767000000000003,16.251799999999999]
[null,null,null,null,null,null,null,null,null,null,null,"Aug",57.715699999999998,10.3432,741.80489999999998,9.5197000000000003,26.0154]
[null,null,null,null,null,null,null,null,null,null,null,"Sep",47.151600000000002,8.6433999999999997,702.55870000000004,8.3356999999999992,19.888100000000001]
[null,null,null,null,null,null,null,null,null,null,null,"Oct",36.384500000000003,7.1319999999999997,529.6155,5.9257999999999997,14.1683]
[null,null,null,null,null,null,null,null,null,null,null,"Nov",42.438699999999997,7.9336000000000002,642.10550000000001,4.5109000000000004,14.7881]
["Comments :",null,null,null,null,null,null,null,null,null,null,"Dec",4.8788999999999998,3.6389999999999998,1819.9883,2.7252999999999998,23.765499999999999]
["Environment Agency explanatory note: The 10-minute average ELV is based on the “95th percentile”. In this case this means that 95% of the 10 minute averages in the relevant 24-hour period (i.e. 137) must be below 150 mg/Nm3, and 5% (i.e. 7) are allowed to be any value above 150 mg/Nm3. Whilst we expect operators to minimise CO emissions at all times, it is perfectly acceptable for the value of the maximum 10-minute average to be above 150 mg/Nm3, provided the 95th percentile ELV has been met for that period. A1 (line 1) had an outage for a complete month in October (hence no data available)",null,null,null,null,null,null,null,null,null,null,"Annual",{"$f":"AVERAGE(M40:M51)","v":25.746441666666666},null,{"$f":"MAX(O40:O51)","v":1819.9883},{"$f":"AVERAGE(P40:P51)","v":4.9145750000000001},{"$f":"MAX(Q40:Q51)","v":31.712399999999999}]
[]
[null,null,null,null,null,null,null,null,null,null,{"$f":"+A8","v":2024},"mg/Nm3","Highest daily 95%ile 10-min average","Monthly mean of 10-min averages","Highest 10-min average","Monthly mean of  daily averages","Highest daily average"]
[null,null,null,null,null,null,null,null,null,null,"A4","Jan"]
[null,null,null,null,null,null,null,null,null,null,null,"Feb"]
[null,null,null,null,null,null,null,null,null,null,null,"Mar"]
[null,null,null,null,null,null,null,null,null,null,null,"Apr"]
[null,null,null,null,null,null,null,null,null,null,null,"May"]
[null,null,null,null,null,null,null,null,null,null,null,"Jun"]
[null,null,null,null,null,null,null,null,null,null,null,"Jul"]
[null,null,null,null,null,null,null,null,null,null,null,"Aug"]
[null,null,null,null,null,null,null,null,null,null,null,"Sep"]
[null,null,null,null,null,null,null,null,null,null,null,"Oct"]
[null,null,null,null,null,null,null,null,null,null,null,"Nov"]
[null,null,null,null,null,null,null,null,null,null,null,"Dec"]
[null,null,null,null,null,null,null,null,null,null,null,"Annual",{"$f":"AVERAGE(M55:M66)","v":{"$error":"#DIV/0!"}},null,{"$f":"MAX(O55:O66)","v":0},{"$f":"AVERAGE(P55:P66)","v":{"$error":"#DIV/0!"}},{"$f":"MAX(Q55:Q66)","v":0}]
[]
[null,null,null,null,null,null,null,null,null,null,{"$f":"+A8","v":2024},"mg/Nm3","95%ile 10-min avg maximum","Monthly CO 10-min avg mean","10-min avg maximum","Monthly daily mean","Monthly daily maximum"]
[null,null,null,null,null,null,null,null,null,null,"A5","Jan"]
[null,null,null,null,null,null,null,null,null,null,null,"Feb"]
[null,null,null,null,null,null,null,null,null,null,null,"Mar"]
[null,null,null,null,null,null,null,null,null,null,null,"Apr"]
[null,null,null,null,null,null,null,null,null,null,null,"May"]
[null,null,null,null,null,null,null,null,null,null,null,"Jun"]
[null,null,null,null,null,null,null,null,null,null,null,"Jul"]
[null,null,null,null,null,null,null,null,null,null,null,"Aug"]
[null,null,null,null,null,null,null,null,null,null,null,"Sep"]
[null,null,null,null,null,null,null,null,null,null,null,"Oct"]
[null,null,null,null,null,null,null,null,null,null,null,"Nov"]
[null,null,null,null,null,null,null,null,null,null,null,"Dec"]
[null,null,null,null,null,null,null,null,null,null,null,"Annual",{"$f":"AVERAGE(M70:M81)","v":{"$error":"#DIV/0!"}},null,{"$f":"MAX(O70:O81)","v":0},{"$f":"AVERAGE(P70:P81)","v":{"$error":"#DIV/0!"}},{"$f":"MAX(Q70:Q81)","v":0}]

{"sheet":"NH3","index":22,"n_rows":79,"n_cols":17,"rows_kept":79,"cut":false,"hidden":false,"merged":[[3,16,7,18],[9,16,11,18],[12,16,15,18],[66,9,78,9],[4,1,4,3],[4,4,4,6],[4,9,4,14],[6,9,18,9],[21,9,33,9],[36,9,48,9],[47,0,47,6],[48,0,51,6],[51,9,63,9],[18,4,18,6]]}
[{"$f":"+'Cover Page'!$B$29","v":"Annual Performance Report 2024"},null,null,null,{"$f":"+'Cover Page'!$B$33","v":"Kent Enviropower Limited"}]
[]
["Monitoring of Ammnonia emissions ",null,null,"Whole Installation",null,null,"See  Notes in Cell Q3",null,null,{"$f":"+A3","v":"Monitoring of Ammnonia emissions "},null,null,null,"Per Combustion Line",null,null,"Notes:"]
[null,null,null,null,null,null,null,null,null,null,null,null,null,null,null,null,"User to add logic to complete Whole installation, Table A5:G18. From the data in Per Combustion Line, Table J6:O79, subject to No. of lines installed"]
[{"$f":"+'Cover Page'!C39","v":2024},"1/2 Hourly Reference Periods",null,null,"Daily Reference Periods"]
["mg/Nm3","1/2 hourly NH3 ELV","Monthly mean of half-hourly averages","Highest half- hourly average","Daily NH3 ELV","Monthly mean of  daily averages","Highest daily average",null,null,{"$f":"+A5","v":2024},"mg/Nm3","Monthly mean of half-hourly averages","Highest half- hourly average","Monthly mean of  daily averages","Highest daily average"]
["Jan","None",{"$f":"AVERAGE(L7,L22,L37)","v":9.1854000000000005E-2},{"$f":"AVERAGE(M7,M22,M37)","v":3.5457926666666668},10,{"$f":"AVERAGE(N7,N22,N37)","v":9.1747000000000009E-2},{"$f":"AVERAGE(O7,O22,O37)","v":0.28107299999999996},null,null,"A1","Jan",7.3713000000000001E-2,0.99408600000000003,7.4615000000000001E-2,0.117479]
["Feb",{"$f":"+B7","v":"None"},{"$f":"AVERAGE(L8,L23,L38)","v":0.11542233333333334},{"$f":"AVERAGE(M8,M23,M38)","v":2.9901616666666668},10,{"$f":"AVERAGE(N8,N23,N38)","v":0.10194833333333335},{"$f":"AVERAGE(O8,O23,O38)","v":0.31347766666666671},null,null,null,"Feb",5.9248000000000002E-2,0.78786,5.9005000000000002E-2,0.13986499999999999]
["Mar",{"$f":"+B8","v":"None"},0.11551766666666667,9.0476890000000001,10,9.8480999999999999E-2,0.30136366666666664,null,null,null,"Mar",0.13320599999999999,19.302626,0.124642,0.57824600000000004,null,"Whole Installation table A5:G18:"]
["Apr","None",0.11924666666666667,10.947329000000002,10,0.11548966666666666,0.56299100000000002,null,null,null,"Apr",4.2875999999999997E-2,0.56633699999999998,4.3569999999999998E-2,7.8691999999999998E-2,null,"Mean: for 1/2 hourly and daily periods calculate mean of values across all operational combustion lines for the month"]
["May","None",0.23821499999999998,20.377184666666668,10,0.25270066666666668,1.757255,null,null,null,"May",5.7230999999999997E-2,1.2822709999999999,5.2519000000000003E-2,0.16777800000000001]
["Jun","None",0.21631066666666665,8.0091359999999998,10,0.20908700000000002,0.9386376666666667,null,null,null,"Jun",8.1084000000000003E-2,3.256726,7.5271000000000005E-2,0.14991599999999999]
["Jul","None",0.27416433333333329,12.960159333333335,10,0.25771733333333335,0.56604466666666664,null,null,null,"Jul",0.12637999999999999,2.4113410000000002,0.12717600000000001,0.32444800000000001,null,"Maximum: for 1/2 hourly and daily periods use the highest value across all operational combustion lines for the month"]
["Aug","None",0.24707333333333334,6.461793666666666,10,0.220606,0.468748,null,null,null,"Aug",0.12479899999999999,9.7580069999999992,9.2503000000000002E-2,0.323237]
["Sep","None",0.23322266666666666,3.5927306666666667,10,0.22487099999999996,0.49928566666666668,null,null,null,"Sep",6.5995999999999999E-2,1.900612,6.9710999999999995E-2,0.15160000000000001]
["Oct","None",0.29731750000000001,4.6891774999999996,10,0.26360450000000002,0.56600300000000003,null,null,null,"Oct","-","-","-","-"]
["Nov","None",0.170353,3.2401893333333334,10,0.13516066666666668,0.35577233333333336,null,null,null,"Nov",4.9738999999999998E-2,1.7015009999999999,4.9732999999999999E-2,0.150617]
["Dec","None",9.7257666666666673E-2,4.0654453333333338,10,8.5239333333333334E-2,0.40764433333333333,null,null,null,"Dec",3.1438000000000001E-2,0.59413499999999997,3.1338999999999999E-2,9.9847000000000005E-2]
[null,null,null,null,null,null,null,null,null,null,"Annual",{"$f":"AVERAGE(L7:L18)","v":7.6882727272727255E-2},{"$f":"MAX(M7:M18)","v":19.302626},{"$f":"AVERAGE(N7:N18)","v":7.2734909090909086E-2},{"$f":"MAX(O7:O18)","v":0.57824600000000004}]
[]
[null,null,null,null,null,null,null,null,null,{"$f":"+A5","v":2024},"mg/Nm3","Monthly mean of half-hourly averages","Highest half- hourly average","Monthly mean of  daily averages","Highest daily average"]
[null,null,null,null,null,null,null,null,null,"A2","Jan",9.3406000000000003E-2,4.2499880000000001,9.1228000000000004E-2,0.23971899999999999]
[null,null,null,null,null,null,null,null,null,null,"Feb",0.19039800000000001,5.0486360000000001,0.15106600000000001,0.54386400000000001]
[null,null,null,null,null,null,null,null,null,null,"Mar",0.1032,2.5185209999999998,6.9513000000000005E-2,0.103336]
[null,null,null,null,null,null,null,null,null,null,"Apr",0.18300900000000001,28.278997,0.17816199999999999,1.2211860000000001]
[null,null,null,null,null,null,null,null,null,null,"May",0.50934199999999996,54.831505,0.56387500000000002,4.4532540000000003]
[null,null,null,null,null,null,null,null,null,null,"Jun",0.25256699999999999,13.382009999999999,0.24193200000000001,0.94182100000000002]
[null,null,null,null,null,null,null,null,null,null,"Jul",0.35650799999999999,32.603413000000003,0.29301100000000002,0.53503500000000004]
[null,null,null,null,null,null,null,null,null,null,"Aug",0.32169399999999998,6.4140779999999999,0.30739699999999998,0.67365699999999995]
[null,null,null,null,null,null,null,null,null,null,"Sep",0.37230400000000002,5.9883790000000001,0.35273500000000002,0.86942600000000003]
[null,null,null,null,null,null,null,null,null,null,"Oct",0.26468799999999998,4.7891149999999998,0.25451099999999999,0.51802199999999998]
[null,null,null,null,null,null,null,null,null,null,"Nov",0.16298499999999999,3.5977670000000002,0.153554,0.49863000000000002]
[null,null,null,null,null,null,null,null,null,null,"Dec",0.114257,2.6783800000000002,9.4050999999999996E-2,0.27556999999999998]
[null,null,null,null,null,null,null,null,null,null,"Annual",{"$f":"AVERAGE(L22:L33)","v":0.24369650000000001},{"$f":"MAX(M22:M33)","v":54.831505},{"$f":"AVERAGE(N22:N33)","v":0.22925291666666667},{"$f":"MAX(O22:O33)","v":4.4532540000000003}]
[]
[null,null,null,null,null,null,null,null,null,{"$f":"+A5","v":2024},"mg/Nm3","Monthly mean of half-hourly averages","Highest half- hourly average","Monthly mean of  daily averages","Highest daily average"]
[null,null,null,null,null,null,null,null,null,"A3","Jan",0.108443,5.3933039999999997,0.109398,0.48602099999999998]
[null,null,null,null,null,null,null,null,null,null,"Feb",9.6620999999999999E-2,3.1339890000000001,9.5773999999999998E-2,0.25670399999999999]
[null,null,null,null,null,null,null,null,null,null,"Mar",0.11014699999999999,5.3219200000000004,0.101288,0.22250900000000001]
[null,null,null,null,null,null,null,null,null,null,"Apr",0.131855,3.9966529999999998,0.124737,0.38909500000000002]
[null,null,null,null,null,null,null,null,null,null,"May",0.14807200000000001,5.0177779999999998,0.141708,0.65073300000000001]
[null,null,null,null,null,null,null,null,null,null,"Jun",0.31528099999999998,7.3886719999999997,0.310058,1.7241759999999999]
[null,null,null,null,null,null,null,null,null,null,"Jul",0.33960499999999999,3.8657240000000002,0.35296499999999997,0.83865100000000004]
[null,null,null,null,null,null,null,null,null,null,"Aug",0.29472700000000002,3.2132960000000002,0.26191799999999998,0.40934999999999999]
[null,null,null,null,null,null,null,null,null,null,"Sep",0.26136799999999999,2.8892009999999999,0.25216699999999997,0.476831]
[null,null,null,null,null,null,null,null,null,null,"Oct",0.32994699999999999,4.5892400000000002,0.272698,0.61398399999999997]
[null,null,null,null,null,null,null,null,null,null,"Nov",0.29833500000000002,4.4212999999999996,0.20219500000000001,0.41807]
["Comments :",null,null,null,null,null,null,null,null,null,"Dec",0.14607800000000001,8.9238210000000002,0.130328,0.84751600000000005]
["An indicated ELV value of zero in the table above means that no ammonia limit is/was set in the permit.  \n\nA1 (line 1) had an outage for a complete month in October (hence no data available)",null,null,null,null,null,null,null,null,null,"Annual",{"$f":"AVERAGE(L37:L48)","v":0.21503991666666669},{"$f":"MAX(M37:M48)","v":8.9238210000000002},{"$f":"AVERAGE(N37:N48)","v":0.19626950000000001},{"$f":"MAX(O37:O48)","v":1.7241759999999999}]
[]
[null,null,null,null,null,null,null,null,null,{"$f":"+A5","v":2024},"mg/Nm3","Monthly mean of half-hourly averages","Highest half- hourly average","Monthly mean of  daily averages","Highest daily average"]
[null,null,null,null,null,null,null,null,null,"A4","Jan"]
[null,null,null,null,null,null,null,null,null,null,"Feb"]
[null,null,null,null,null,null,null,null,null,null,"Mar"]
[null,null,null,null,null,null,null,null,null,null,"Apr"]
[null,null,null,null,null,null,null,null,null,null,"May"]
[null,null,null,null,null,null,null,null,null,null,"Jun"]
[null,null,null,null,null,null,null,null,null,null,"Jul"]
[null,null,null,null,null,null,null,null,null,null,"Aug"]
[null,null,null,null,null,null,null,null,null,null,"Sep"]
[null,null,null,null,null,null,null,null,null,null,"Oct"]
[null,null,null,null,null,null,null,null,null,null,"Nov"]
[null,null,null,null,null,null,null,null,null,null,"Dec"]
[null,null,null,null,null,null,null,null,null,null,"Annual",{"$f":"AVERAGE(L52:L63)","v":{"$error":"#DIV/0!"}},{"$f":"MAX(M52:M63)","v":0},{"$f":"AVERAGE(N52:N63)","v":{"$error":"#DIV/0!"}},{"$f":"MAX(O52:O63)","v":0}]
[]
[null,null,null,null,null,null,null,null,null,{"$f":"+A5","v":2024},"mg/Nm3","Monthly mean of half-hourly averages","Highest half- hourly average","Monthly mean of  daily averages","Highest daily average"]
[null,null,null,null,null,null,null,null,null,"A5","Jan"]
[null,null,null,null,null,null,null,null,null,null,"Feb"]
[null,null,null,null,null,null,null,null,null,null,"Mar"]
[null,null,null,null,null,null,null,null,null,null,"Apr"]
[null,null,null,null,null,null,null,null,null,null,"May"]
[null,null,null,null,null,null,null,null,null,null,"Jun"]
[null,null,null,null,null,null,null,null,null,null,"Jul"]
[null,null,null,null,null,null,null,null,null,null,"Aug"]
[null,null,null,null,null,null,null,null,null,null,"Sep"]
[null,null,null,null,null,null,null,null,null,null,"Oct"]
[null,null,null,null,null,null,null,null,null,null,"Nov"]
[null,null,null,null,null,null,null,null,null,null,"Dec"]
[null,null,null,null,null,null,null,null,null,null,"Annual",{"$f":"AVERAGE(L67:L78)","v":{"$error":"#DIV/0!"}},{"$f":"MAX(M67:M78)","v":0},{"$f":"AVERAGE(N67:N78)","v":{"$error":"#DIV/0!"}},{"$f":"MAX(O67:O78)","v":0}]

{"sheet":"Template changes log","index":23,"n_rows":18,"n_cols":3,"rows_kept":18,"cut":false,"hidden":false,"merged":[]}
["Log of changes to template (Environment Agency use only)"]
[]
["Date","Description of change","New version number and date"]
["2024-01-16","Air (periodic) tab: corrected default O2 reference from 6 to 11% ","Version 23.5a (for incinerators) - 16/01/2024"]
["2024-09-23","Air (periodic) tab: corrected symbol for Thallium to Tl"]
["2024-09-23","Air (periodic) tab: removed last year's references to different emission limit values applying from 03/12/23 and updated all relevant ELVs"]
["2024-09-23","Tabs for continuously monitored pollutants (HCl, SO2 etc.): changed terminology in table headings to improve clarity"]
["2024-09-23","Tabs for continuously monitored pollutants (HCl, SO2 etc.): removed last year's references to different emission limit values applying from 03/12/23 and updated all relevant ELVs"]
["2024-09-23","Perf 1 tab: updated formula for water usage to report m3 rather than litres and corrected error with formula copying operator name"]
["2024-09-23","Operational Summary tab: table added on start-ups and shut-downs"]
["2024-09-23","Operational Summary tab: table added on dioxins and mercury protocols"]
["2024-09-23","Operational Summary tab: table added on AST, QAL 2 and calibration functions"]
["2024-09-23","CO2 N2O tab: various changes made to notes to reflect the fact that most plants should now have calibrated CEMS and flow meters + some have C14 samplers and more up to date industry data","Version 24a (for incinerators) - 23/09/24"]
["2024-11-08","CO2 N2O tab: Changed the N2O CO2 equivalence factor from 298 to 265 in line with recently updated government greenhouse gas figures: https://www.gov.uk/government/publications/greenhouse-gas-reporting-conversion-factors-2024"]
["2024-11-08","CO2 N2O tab: Added an additional requirement for municipal EfW plants to state the yearly average biogenic percentage of the waste by mass, and reference to a document which sets out a methodology for calculating NCV of waste from the results of C14 sampling."]
["2024-11-08","Permit Compliance tab: Two additional columns added + explanatory notes to the table entitled \"Summary of non-compliances under the permit\" to allow CCS scores to be stated where relevant. "]
["2024-11-08","Residue Quality tab: Note added explaining application of TOC and LOI limits and asking operators to report both metrics where measured. ","Version 24.1a (for incinerators) - 08/11/24"]
["2024-11-27","Operational Summary tab: Tables on mercury & dioxins protocols and ASTs removed (covered instead by new tables added to updated Air 9 periodic monitoring form)","Version 24.2a (for incinerators) - 27/11/24"]